Cogmind - Beta 10.2 @@@ ROGUE MODE // 2021.07.03 @ 20:12:31 Player: KTG-V3 Result: Escaped! Performance ------------- Evolutions (9) 4500 Regions Visited (32) 6400 Robots Destroyed (510) 2550 Value Destroyed (30755) 30755 Prototype IDs (79) 1580 Alien Tech Used (7) 1400 Bonus (26583) 26583 TOTAL SCORE: 73768 Bonus ------- High Alert Combat Kills 1280 Follower Combat Kills 2187 Network Hubs Disabled 200 Met Data Miner 300 Met Warlord at Base 500 MAIN.C Attacked Warlord 500 Warlord Defense Kill 2296 Built Enhanced Grunts 300 Met R17 at Cetus 500 Met R17 at Research 2000 Met Warlord at Research 2000 Invited to Help at Command 2000 Destroyed MAIN.C Guards 500 Met MAIN.C 5000 Destroyed MAIN.C Shell 5000 Win 3000 Friendly Fire -980 Cogmind --------- Core Integrity 136/1600 Matter 300/300 Energy 99/100 System Corruption 32% Temperature Cool (0) Movement Core (50) Location To Epsilon Eridani Parts ------- > --- POWER (3) -------- (None) > --- PROPULSION (4) --- (None) > --- UTILITY (14) ----- (None) > --- WEAPON (4) ------- (None) > --- INVENTORY (4) ---- Heavy Regenerative Plating Matter Drive Peak State ------------ > --- POWER ------------ Zero-point Reactor Vortex Chain Reactor > --- PROPULSION ------- Experimental Biometal Heavy Treads Experimental Biometal Heavy Treads > --- UTILITY ---------- Experimental Cooling System High-capacity Storage Unit High-capacity Storage Unit High-capacity Storage Unit High-capacity Storage Unit Advanced Armor Integrity Analyzer Particle Accelerator Quantum Capacitor Heavy Regenerative Plating Heavy Regenerative Plating AEGIS Remote Shield > --- WEAPON ----------- Gamma Rifle Gamma Rifle Enhanced Nova Cannon Plasma Lance > --- INVENTORY -------- Vortex Chain Reactor Biometal Heavy Treads Biometal Heavy Treads Experimental Cooling System Advanced Energy Well Experimental Energy Well Experimental Energy Well Experimental Energy Well Experimental Energy Well Energy Filter Quantum Capacitor Experimental Weapon Cycler Heavy Regenerative Plating EM Dispersion Field AEGIS Remote Shield Makeshift System Restoration Module Long-range Tractor Beam Matter Drive Gamma Rifle Heavy Neutron Cannon Long-range Phase Cannon Nova Cannon Enhanced Nova Cannon Enhanced Nova Cannon Enhanced Nova Cannon Hypervelocity Multirail Gamma Bomb Array Micro-nuke Launcher [Rating: 217] Favorites ----------- Power Antimatter Reactor Engine Reinforced Deuterium Engine Power Core Micro Fission Core Reactor Antimatter Reactor Propulsion Light Treads Treads Light Treads Leg Aluminum Leg Wheel Armored Huge Wheel Utility High-capacity Storage Unit Device Advanced Heat Sink Storage High-capacity Storage Unit Processor Advanced Terrain Scan Processor Hackware Ghost Barrier Protection Centrium Medium Armor Plating Artifact Phase Armor Weapon KE Penetrator Energy Gun Gamma Rifle Energy Cannon Compact HERF Cannon Ballistic Gun KE Penetrator Ballistic Cannon Light Cannon Launcher Gamma Bomb Array Special Weapon Welding Torch Impact Weapon Core Stripper Piercing Weapon Plasma Lance Special Melee Weapon Improved Datajack Build | -11 -10 -10 -10 -9 -8 -7 -7 -7 -7 -6 -6 -6 -6 -6 -5 -5 -5 -5 -5 -5 -4 -4 -4 -4 -3 -3 -3 -2 -2 -2 -1 -1 ------- Run | Scr Mat Min Exi Min Mat Fac Low Low Dat Pro Fac Low Low Zio Pro Fac Ext Cet Arc Hub Fac Upp Upp War Pro Res Qua Res Tes Sec Acc Com Slots Evolved 18 | . . . . . 4 2 . . . . 2 . . . . 2 . . . . 2 . . . . 2 . 2 . . 2 . Power 2 | . . . . . . . . . . . . . . . . 1 . . . . . . . . . . . . . . 1 . Propulsion 2 | . . . . . 1 . . . . . 1 . . . . . . . . . . . . . . . . . . . . . Utility 12 | . . . . . 2 2 . . . . 1 . . . . 1 . . . . 2 . . . . 1 . 2 . . 1 . Weapon 2 | . . . . . 1 . . . . . . . . . . . . . . . . . . . . 1 . . . . . . Parts Attached 926 | 6 25 1 7 2 26 58 10 25 3 4 38 12 7 7 14 65 49 15 7 20 54 13 24 33 24 55 55 40 81 41 39 66 Power 60 | 1 5 . 1 . 1 2 . 2 . . 1 . . . . 10 4 2 1 . 3 . . 4 2 4 2 2 5 1 2 5 Engine 17 | 1 5 . 1 . 1 1 . 2 . . 1 . . . . 3 1 . . . 1 . . . . . . . . . . . Core 15 | . . . . . . 1 . . . . . . . . . 6 3 . . . . . . 2 . 3 . . . . . . Reactor 28 | . . . . . . . . . . . . . . . . 1 . 2 1 . 2 . . 2 2 1 2 2 5 1 2 5 Propulsion 97 | 2 8 . 3 . 8 10 1 7 . . 6 2 1 . 1 10 10 2 . . 2 . . 7 1 2 4 2 2 . 2 4 Treads 80 | 2 5 . . . 5 10 1 7 . . 5 2 . . . 6 9 2 . . 2 . . 7 1 2 4 2 2 . 2 4 Leg 12 | . 2 . 3 . 3 . . . . . . . . . . 3 1 . . . . . . . . . . . . . . . Wheel 5 | . 1 . . . . . . . . . 1 . 1 . 1 1 . . . . . . . . . . . . . . . . Hover . | . . . . . . . . . . . . . . . . . . . . . . . . . . . . . . . . . Flight . | . . . . . . . . . . . . . . . . . . . . . . . . . . . . . . . . . Utility 488 | 1 5 . 1 . 5 30 7 6 . . 16 4 4 3 2 28 25 4 3 12 28 13 12 10 11 37 32 24 50 37 32 46 Device 293 | . 2 . . . . 12 4 3 . . 4 2 4 2 . 16 15 1 2 8 14 9 6 6 5 25 18 17 39 30 26 23 Storage 59 | 1 2 . 1 . 5 3 . . . . 3 . . . . 3 . 1 . . 4 . . 1 1 2 2 5 5 3 1 16 Processor 15 | . . . . . . 1 . . . . 1 . . . . 1 . . 1 . 2 . . 1 1 2 1 1 . . . 3 Hackware 7 | . . . . . . 1 . . . . 1 . . . . . . . . 1 1 . . . . . 1 1 . . 1 . Protection 104 | . 1 . . . . 13 3 3 . . 7 2 . 1 2 8 10 2 . 3 7 4 6 2 4 8 4 . 3 3 4 4 Artifact 10 | . . . . . . . . . . . . . . . . . . . . . . . . . . . 6 . 3 1 . . Weapon 281 | 2 7 1 2 2 12 16 2 10 3 4 15 6 2 4 11 17 10 7 3 8 21 . 12 12 10 12 17 12 24 3 3 11 Energy Gun 44 | . 2 . 2 . 5 2 . . . . 1 . . . . 3 2 . . . 1 . . . 3 1 7 3 5 2 2 3 Energy Cannon 81 | . . . . . . 3 . 2 . 1 4 1 . . 2 4 . 4 . 3 9 . 2 3 . 5 9 6 13 1 1 8 Ballistic Gun 113 | 2 1 . . . 6 10 1 6 3 2 7 3 2 2 7 9 7 3 3 5 11 . 7 6 7 1 1 . 1 . . . Ballistic Cannon 10 | . 1 1 . 2 . . . . . . 1 . . 2 . . . . . . . . . 1 . 1 . . 1 . . . Launcher 18 | . . . . . 1 1 1 1 . 1 . 1 . . 2 1 . . . . . . 3 1 . 1 . 2 2 . . . Special Weapon 4 | . 3 . . . . . . . . . . 1 . . . . . . . . . . . . . . . . . . . . Impact Weapon 3 | . . . . . . . . . . . 2 . . . . . . . . . . . . . . . . . 1 . . . Slashing Weapon . | . . . . . . . . . . . . . . . . . . . . . . . . . . . . . . . . . Piercing Weapon 6 | . . . . . . . . . . . . . . . . . . . . . . . . 1 . 3 . 1 1 . . . Special Melee Weapon 2 | . . . . . . . . 1 . . . . . . . . 1 . . . . . . . . . . . . . . . Unidentified Prototypes 72 | . . . . . 5 1 . . . . 4 . . 1 . 4 . 3 . . 1 . . 4 1 10 7 2 16 6 1 6 Parts Lost 127 | . 9 . . . 3 7 2 7 . 1 1 2 2 . 5 19 5 . 1 2 5 1 8 11 . 2 4 2 3 2 1 22 Power 10 | . 1 . . . . 1 . . . . . . . . . 1 . . . 1 . . 1 2 . . . . . . . 3 Propulsion 26 | . 4 . . . . 3 1 2 . . 1 1 . . 1 6 2 . . . 1 . . 2 . . . . . . . 2 Utility 38 | . . . . . . 2 1 2 . 1 . 1 1 . 1 7 2 . 1 . 1 1 5 2 . 1 . . 1 1 . 7 Weapon 53 | . 4 . . . 3 1 . 3 . . . . 1 . 3 5 1 . . 1 3 . 2 5 . 1 4 2 2 1 1 10 Highest Loss Streak 13 | . 6 . . . 2 3 2 3 . 1 1 1 1 . 3 5 3 . 1 2 3 1 3 7 . 1 2 1 1 1 1 13 Average Slot Usage (%) 89 | . 83 92 100 100 99 97 99 98 79 97 92 92 86 85 88 93 98 95 85 87 88 88 85 83 87 84 81 81 81 81 82 74 Engine 3 | . 14 14 14 14 9 5 . 2 7 7 6 6 6 6 6 3 1 . . . 1 . . . . . . . . . . . Core 1 | . . . . . . 1 7 4 . . . . . . . 2 5 4 . . . . . 1 . 2 4 3 . . . . Reactor 4 | . . . . . . . . . . . . . . . . 2 2 5 11 10 8 10 8 5 9 6 4 4 7 8 11 9 Treads 13 | . 16 . . . 20 22 23 22 23 23 22 25 13 13 13 11 21 18 11 11 10 10 10 13 20 10 9 8 8 8 8 7 Leg 2 | . 9 28 28 28 6 . . . . . . . . . . 3 1 . . . . . . . . . . . . . . . Device 7 | . 1 . . . . 2 5 3 7 7 . . 1 6 6 11 11 11 8 8 9 8 7 6 5 8 9 14 12 12 14 14 Storage 23 | . 18 14 16 28 36 30 30 30 30 30 26 26 26 26 26 23 23 23 23 23 21 21 21 24 26 23 20 17 17 18 16 18 Processor 3 | . . . . . . 1 . . . . . . . . . . . . . 5 6 10 10 11 10 9 5 6 8 8 8 7 Hackware 1 | . . . . . . . . . . . 5 6 4 . . . . . . . 4 5 . . . . 2 4 4 2 3 . Protection 6 | . . 14 11 . . 8 8 9 7 5 5 5 6 6 9 9 10 10 10 6 8 6 9 5 4 2 1 . . 4 5 5 Energy Gun 2 | . 1 . 23 . 7 1 . . . . . . . . . 2 4 . . . . . . . 5 5 2 6 3 3 6 1 Energy Cannon 1 | . . . . . . . . 1 . . . . . . . 1 . 5 5 1 2 . . 1 . 7 9 4 3 4 4 5 Ballistic Gun 10 | . 13 . . . 16 19 22 21 3 21 19 19 20 19 17 12 9 10 10 14 12 15 14 13 3 . . . . . . . Ballistic Cannon 1 | . 4 21 4 28 2 . . . . . . . . . . . . . . . . . . . . . . . . . . . Naked Turns 18 | . . . . . . . . . . . . . . . . . . . . . . . . . . . . . . . . 18 Heaviest Build 275 | 10 46 44 55 59 100 120 111 122 116 120 141 147 145 145 144 154 146 170 170 162 196 190 201 247 210 234 245 257 264 247 262 275 Greatest Support 180 | 40 40 20 30 30 60 62 60 83 70 70 90 98 98 28 58 76 109 160 160 160 160 150 150 150 108 135 145 150 180 180 180 170 Greatest Overweight (x) 11 | . 3 2 2 1 4 2 1 2 1 1 2 2 5 5 5 11 5 1 1 1 1 1 1 2 1 2 1 1 1 1 1 1 Average Overweight (x) 1 | . . 2 1 1 1 1 1 1 1 1 1 1 4 4 4 2 1 . . . . 1 1 1 1 1 1 1 1 1 1 . Largest Inventory Capacity 44 | 6 16 12 18 18 30 30 30 30 30 30 38 32 32 32 32 32 32 32 32 32 36 36 36 44 44 42 42 36 36 36 36 36 Average Capacity 31 | 5 10 12 13 18 29 30 30 30 30 30 31 32 32 32 32 32 32 32 32 32 34 36 36 41 42 42 37 36 36 36 36 35 Most Carried 44 | 6 12 12 15 17 30 30 28 29 28 30 32 32 32 32 32 32 32 32 32 32 36 36 36 44 40 42 42 36 36 36 36 36 Average Carried 30 | 5 7 11 11 16 25 28 27 27 28 28 30 30 31 31 30 30 31 31 32 31 33 35 33 39 36 40 36 35 35 35 35 33 Final Capacity 44 | 6 12 12 18 18 30 30 30 30 30 30 32 32 32 32 32 32 32 32 32 32 36 36 36 44 42 42 36 36 36 36 36 4 Final Carried 41 | 6 12 11 15 17 30 28 28 28 28 28 32 32 32 32 28 31 32 32 32 32 35 36 36 40 40 41 36 35 36 36 36 4 Class Distribution -------------------- 24% | Hauler-Mutant 24% | Scavenger-Tank 17% | Hauler-Tank 11% | Scavenger-Mutant 8% | Hauler-Gunner 7% | Mutant Dominant Class ---------------- Mutant | -10/Materials Mutant | -10/Mines Scavenger-Mutant | -10/Exiles Mutant | -9/Mines Hauler-Gunner | -8/Materials Hauler-Tank | -7/Factory Hauler-Tank | -7/Lower Caves Hauler-Tank | -7/Lower Caves Hauler-Mutant | -7/Data Miner Scavenger-Tank | -6/Proximity Caves Hauler-Tank | -6/Factory Hauler-Tank | -6/Lower Caves Hauler-Tank | -6/Lower Caves Scavenger-Tank | -6/Zion Scavenger-Tank | -5/Proximity Caves Scavenger-Tank | -5/Factory Scavenger-Mutant | -5/Extension Scavenger-Mutant | -5/Cetus Scavenger-Tank | -5/Archives Scavenger-Tank | -5/Hub_04(d) Scavenger-Mutant | -4/Factory Hauler-Gunner | -4/Upper Caves Scavenger-Tank | -4/Upper Caves Hauler-Gunner | -4/Warlord Hauler-Tank | -3/Proximity Caves Hauler-Mutant | -3/Research Hauler-Mutant | -3/Quarantine Hauler-Mutant | -2/Research Hauler-Mutant | -2/Testing Hauler-Mutant | -2/Section 7 Hauler-Mutant | -1/Access Generator-Mutant | -1/Command Resources | -11 -10 -10 -10 -9 -8 -7 -7 -7 -7 -6 -6 -6 -6 -6 -5 -5 -5 -5 -5 -5 -4 -4 -4 -4 -3 -3 -3 -2 -2 -2 -1 -1 ----------- Run | Scr Mat Min Exi Min Mat Fac Low Low Dat Pro Fac Low Low Zio Pro Fac Ext Cet Arc Hub Fac Upp Upp War Pro Res Qua Res Tes Sec Acc Com Matter Collected 18846 | 372 607 50 80 63 747 1703 311 454 . 199 837 448 277 30 411 2046 1413 204 50 831 876 473 728 692 788 813 631 476 744 496 408 588 Remotely 3901 | . . . . . . 237 22 91 . . 132 232 87 . . 268 377 90 . 303 373 235 612 143 . 173 55 107 160 105 . 99 Salvage Created 30936 | 226 736 47 464 60 1097 2132 214 437 . 154 375 462 202 . 464 3132 1764 283 136 1060 1362 855 523 1138 591 1166 2243 1957 1811 2012 1829 2004 Parts 1350 | 20 42 8 23 2 51 106 10 17 . 7 19 21 14 . 25 124 75 7 3 58 54 34 16 41 45 46 106 78 75 72 93 58 Haulers Intercepted 11 | . 1 . . . 4 1 . . . . . . . . . 4 . . . . . . . . . . . 1 . . . . Recyclers Shooed 8 | . 1 . . . . 3 . . . . . . . . . 3 . . . . 1 . . . . . . . . . . . Parts Field Recycled . | . . . . . . . . . . . . . . . . . . . . . . . . . . . . . . . . . Retrieved Matter . | . . . . . . . . . . . . . . . . . . . . . . . . . . . . . . . . . Parts Self-Destructed 260 | . . . . . . . 8 10 . 14 . 7 13 1 25 . . . . . . 33 9 101 39 . . . . . . . Prevented 43 | . . . . . . . . 5 . 2 . . . . 1 . . . . . . . . 31 4 . . . . . . . Kills | -11 -10 -10 -10 -9 -8 -7 -7 -7 -7 -6 -6 -6 -6 -6 -5 -5 -5 -5 -5 -5 -4 -4 -4 -4 -3 -3 -3 -2 -2 -2 -1 -1 ------- Run | Scr Mat Min Exi Min Mat Fac Low Low Dat Pro Fac Low Low Zio Pro Fac Ext Cet Arc Hub Fac Upp Upp War Pro Res Qua Res Tes Sec Acc Com Combat Hostiles Destroyed 409 | . 18 1 4 4 15 35 6 9 . 4 6 11 4 . 12 36 20 4 1 13 16 12 14 15 7 10 28 24 20 21 21 18 Melee 2 | . . . . . . . . . . . . . . . . . . . . . . . . . . 1 1 . . . . . Guns 181 | . 11 . 4 . 8 28 3 2 . 1 4 7 4 . 7 23 16 1 . 12 7 12 5 12 7 1 . 1 . 1 3 1 Cannons 88 | . 7 1 . 4 4 2 . . . . 1 . . . . 3 . 1 . . 5 . . 2 . . 13 3 11 7 9 15 AOE 50 | . . . . . 3 5 3 6 . 2 . 4 . . 5 5 . . . . . . 9 . . 2 1 5 . . . . Classes Destroyed 24 | 3 4 2 1 2 1 3 1 . . . . 1 . . . . . . . . . . 1 2 . 1 . . 1 . . 1 Worker 21 | 2 2 . . . 2 2 . . . . 1 . . . . 3 . . . 7 . . . . . 1 . 1 . . . . Builder 10 | . . 1 . . 1 6 . . . . . . . . . . . . . 2 . . . . . . . . . . . . Tunneler 9 | 6 . 2 . . . . . . . . 1 . . . . . . . . . . . . . . . . . . . . . Hauler 11 | . 1 . . . 4 1 . . . . . . . . . 4 . . . . . . . . . . . 1 . . . . Recycler 16 | 1 . . . . 3 4 . . . . . . . . . 4 1 . . . . . . . . 3 . . . . . . Operator 10 | . . . . . 1 . . . . . . . . . . . 1 . 1 . 1 . . . . . 3 . . 2 . 1 Watcher 26 | . 3 . . . 2 1 . . . . . . . . . 3 2 . . 1 2 . . . . . 2 . 3 3 2 2 Swarmer 37 | . 3 . . . 3 1 4 . . 2 . 4 1 . 5 5 . . . . . . 1 . . 3 . 5 . . . . Saboteur 1 | . . . . . . . . . . . . . . . . . . . . . . . 1 . . . . . . . . . Grunt 144 | . 15 . 2 . 7 22 1 5 . 1 . . 1 . 2 14 8 . . 4 1 9 4 10 2 . 13 7 5 6 5 . Brawler 11 | . . . . . . 1 . 1 . . . . . . . 1 . 1 . 2 . 1 2 1 . . . 1 . . . . Duelist 5 | . . . . . . 1 . . . . . . . . . . . . . . . . 4 . . . . . . . . . Sentry 51 | . . . . 1 5 4 . 2 . . 3 . 1 . . 4 7 . 1 3 7 1 1 . 1 1 . 2 . 5 2 . Demolisher 3 | . . . . 1 . . . . . . . . . . . . . . . 1 . . . . . . . 1 . . . . Specialist 5 | . . . . . . . . . . . . . . . . . . . . . . . . 1 . . 3 . 1 . . . Hunter 36 | . . . 2 . . 2 . . . 1 . . . . . 5 3 2 . 1 6 . . . . 2 2 3 1 2 4 . Programmer 68 | . . . . . . 4 . . . . 3 . 1 . 2 7 . . . 2 2 1 . . 4 1 10 1 10 7 10 3 Behemoth 7 | . . . . . . . 1 1 . . . . . . 1 . 2 . . . . . 1 . . 1 . . . . . . Cetus Guard 1 | . . . . . . . . . . . . . . . . . . 1 . . . . . . . . . . . . . . S7 Guard 1 | . . . . . . . . . . . . . . . . . . . . . . . . . . . . . . 1 . . M Guard 2 | . . . . . . . . . . . . . . . . . . . . . . . . . . . . . . . . 2 Enhanced Q-Series 10 | . . . . . . . . . . . . . . . . . . . . . . . . . . . . . . . . 10 Combat Programmer 2 | . . . . . . . . . . . . . . . . . . . . . . . . . . . . . . . . 2 Striker 9 | . . . . . . . . . . . . . . . . . . . . . . . . 3 . 1 . 3 2 . . . Executioner 2 | . . . . . . . . . . . . . . . . . . . . . . . . . . 1 . 1 . . . . Fortress 1 | . . . . . . . . . . . . . . . . . . . . . . . . . . . . . 1 . . . Assembled 3 | . . 1 . 2 . . . . . . . . . . . . . . . . . . . . . . . . . . . . Thug 2 | . . . . . . . . . . . . 1 . . . . 1 . . . . . . . . . . . . . . . Butcher 6 | . . . . . . . . . . . . 5 . . 1 . . . . . . . . . . . . . . . . . Mutant 2 | . . . . . . . . . . . . 1 . . 1 . . . . . . . . . . . . . . . . . Best Kill Streak 10 | 4 5 1 2 1 4 8 4 7 . 2 3 4 2 . 4 7 7 2 1 4 7 4 7 4 2 6 10 8 4 3 5 4 Combat Bots Only 10 | . 5 1 2 1 3 4 4 7 . 2 2 4 2 . 4 7 7 2 1 3 6 4 7 4 2 5 10 8 4 3 5 4 Max Kills in Single Turn 5 | 1 1 1 1 1 4 3 3 3 . 2 1 2 1 . 1 3 1 1 1 3 1 2 4 2 1 2 1 5 1 1 1 1 Gunslinging 1 | . . . . . . 1 . . . . . . . . . . . . . . . 1 . . . . . . . . . . Exploded 5 | . . . . . 3 2 3 3 . 2 . 2 . . 1 3 . . . . . . 4 . . 2 1 5 . . . . Melee 1 | . . . . . . . . . . . . . . . . . . . . . . . . . . 1 1 . . . . . Uniques/NPCs Destroyed 1 | . . . . . . . . . . . . . . . . . . . . . . . . . . . . . . . . 1 MAIN.C Shell (-1/Command) Combat | -11 -10 -10 -10 -9 -8 -7 -7 -7 -7 -6 -6 -6 -6 -6 -5 -5 -5 -5 -5 -5 -4 -4 -4 -4 -3 -3 -3 -2 -2 -2 -1 -1 -------- Run | Scr Mat Min Exi Min Mat Fac Low Low Dat Pro Fac Low Low Zio Pro Fac Ext Cet Arc Hub Fac Upp Upp War Pro Res Qua Res Tes Sec Acc Com Damage Taken 47671 | . 1214 35 . 106 758 2811 626 951 . 218 774 662 365 . 909 3969 1995 178 192 1488 2486 745 2289 4077 737 1844 2802 1362 1752 725 504 11097 Core 4479 | . 134 . . 39 95 188 36 62 . . 20 65 18 . 112 401 134 . . 20 214 51 68 326 47 85 358 263 245 34 41 1423 Absorbed by Shields 7589 | . . . . . . . . . . . . . . . . . . 67 . . . . . 368 . 54 . 522 654 677 471 4776 Reduced by Siege Mode 1015 | . . . . . . . . . . . . . . . . . . . . 9 64 104 306 . . 16 65 4 46 23 10 368 Redirected to Core 627 | . . . . . . . . . . . . . . . . . . . . . . . . . . . 212 242 173 . . . Core Remaining (%) 56 | 100 . . . 30 82 . . . . 59 . . . . 74 . . . . 44 . . . . 38 . 65 . . 62 . 8 Volleys Fired 1853 | 28 106 8 30 7 53 101 13 24 . 13 24 28 11 . 26 136 77 10 7 55 63 29 57 57 20 28 116 91 75 152 85 323 Largest 3 | 2 2 2 2 2 3 3 3 3 . 3 3 3 3 . 3 3 3 3 3 3 3 3 3 3 3 3 2 1 1 1 2 1 Hottest 256 | 40 105 70 80 70 121 157 84 125 . 79 84 90 84 . 138 131 158 150 151 160 162 99 99 166 225 256 188 113 120 105 180 120 Shots Fired 3230 | 56 164 10 60 14 148 243 37 45 . 25 52 74 33 . 59 331 218 22 16 139 147 87 122 145 60 76 119 91 75 152 90 320 Gun 2143 | 56 118 . 60 . 117 217 36 32 . 18 42 69 33 . 47 285 218 6 4 125 94 87 95 127 60 54 3 10 1 70 55 4 Cannon 1029 | . 27 10 . 14 30 18 . 9 . 6 10 2 . . 6 43 . 16 12 14 53 . 21 17 . 22 116 76 74 82 35 316 Launcher 39 | . . . . . 1 8 1 4 . 1 . 3 . . 6 3 . . . . . . 6 1 . . . 5 . . . . Special 19 | . 19 . . . . . . . . . . . . . . . . . . . . . . . . . . . . . . . Kinetic 1809 | 56 124 10 . 14 116 205 36 32 . 18 42 69 33 . 47 262 155 6 4 125 89 87 95 127 57 . . . . . . . Thermal 681 | . 40 . 60 . 30 13 . . . . . 2 . . . . . . . 8 9 . 21 9 . . 54 25 35 67 35 273 Explosive 34 | . . . . . 1 8 1 4 . 1 . 3 . . 6 3 . . . . . . 6 1 . . . . . . . . Electromagnetic 683 | . . . . . 1 17 . 9 . 6 10 . . . 6 66 63 16 12 6 49 . . . 3 76 65 66 40 85 55 32 Entropic 23 | . . . . . . . . . . . . . . . . . . . . . . . . 8 . . . . . . . 15 Robot Hit Streak 42 | 8 26 10 18 3 9 17 12 12 . 7 10 9 15 . 9 15 27 9 12 29 29 42 25 23 18 13 28 10 19 34 26 23 Robot Miss Streak 9 | 2 3 1 2 2 4 6 9 5 . 5 8 5 5 . 6 5 5 1 2 3 2 1 1 2 2 4 2 2 1 3 2 3 Penetration Max 2 | . . . . . . 1 . . . . . 1 . . . 1 1 . . 2 1 1 1 1 1 . . . . . . . Secondary Targets 28 | . 5 . . . . 6 . . . 1 . 1 . . 1 3 3 . . . . 4 1 3 . . . . . . . . Max Gunslinging Chain 1 | . 1 . . . . 1 . . . 1 . 1 . . 1 1 1 . . . . 1 1 1 . . . . . . . . Capacitor 821 | . . . . . . . . . . . . . . . . . . . . . . . . . . . 113 83 75 152 78 320 Shots Hit Robots 2483 | 37 122 8 45 6 95 197 32 42 . 21 41 60 27 . 49 241 181 19 11 90 106 75 88 107 42 61 89 53 67 125 75 271 Core Hits 1211 | 11 47 5 17 4 42 165 24 33 . 21 33 46 16 . 47 141 62 7 5 53 34 30 38 45 16 26 33 50 25 39 23 73 Critical Hits 91 | . 2 . . . 1 4 . 1 . . . . . . . 6 10 1 . 2 8 13 14 8 4 2 . 1 1 3 . 10 Critical Kills 28 | . . . . . . 2 . . . . . . . . . 4 3 1 . 1 4 6 2 1 2 . . . . 1 . 1 Critical Parts Destroyed 44 | . 2 . . . 1 2 . . . . . . . . . 2 6 . . 1 3 5 2 6 1 1 . 1 1 2 . 8 Melee Attacks 67 | . . . . . . . . 1 . . 2 . . . . . 21 . . . . . . . . 14 1 3 12 13 . . Kinetic 5 | . . . . . . . . . . . . . . . . . . . . . . . . . . . . . 5 . . . Impact 2 | . . . . . . . . . . . 2 . . . . . . . . . . . . . . . . . . . . . Slashing . | . . . . . . . . . . . . . . . . . . . . . . . . . . . . . . . . . Piercing 38 | . . . . . . . . . . . . . . . . . . . . . . . . . . 14 1 3 7 13 . . Sneak Attacks 22 | . . . . . . . . 1 . . . . . . . . 21 . . . . . . . . . . . . . . . Combat Hostiles . | . . . . . . . . . . . . . . . . . . . . . . . . . . . . . . . . . Follow-up Attacks . | . . . . . . . . . . . . . . . . . . . . . . . . . . . . . . . . . Damage Inflicted 78126 | 314 1390 155 495 98 2078 4923 852 1277 . 495 1138 1308 540 . 1471 6410 3797 547 388 3113 3259 1816 4214 3493 1037 1998 4465 3039 3291 4636 3201 12888 Guns 37145 | 314 1017 . 495 . 1563 3005 672 526 . 229 756 975 540 . 958 5184 3797 99 51 2494 1899 1816 2030 2929 1037 986 . 221 50 1826 1582 94 Cannons 32325 | . 336 155 . 98 355 406 . 157 . 120 250 . . . 92 899 . 448 337 181 1360 . . 438 . 504 4263 1757 3109 2720 1619 12721 Explosions 8281 | . . . . . 160 1512 180 594 . 146 132 333 . . 421 327 . . . 438 . . 2184 126 . 338 166 1061 . 90 . 73 Melee 338 | . . . . . . . . . . . . . . . . . . . . . . . . . . 170 36 . 132 . . . Ramming . | . . . . . . . . . . . . . . . . . . . . . . . . . . . . . . . . . Kinetic 30291 | 314 1066 155 . 98 1426 2805 672 526 . 229 756 975 540 . 958 4762 2653 99 51 2494 1813 1816 2030 2929 992 . . . 132 . . . Thermal 21292 | . 324 . 495 . 479 284 . . . . 132 . . . 72 . . . . 62 . . . . . 338 1933 580 1547 2400 1619 11027 Explosive 5827 | . . . . . 160 1428 180 594 . 146 . 333 . . 349 327 . . . . . . 2184 126 . . . . . . . . Electromagnetic 18840 | . . . . . 13 406 . 157 . 120 250 . . . 92 1321 1144 448 337 557 1446 . . . 45 1490 2496 2459 1612 2236 1582 629 Impact . | . . . . . . . . . . . . . . . . . . . . . . . . . . . . . . . . . Slashing . | . . . . . . . . . . . . . . . . . . . . . . . . . . . . . . . . . Piercing 206 | . . . . . . . . . . . . . . . . . . . . . . . . . . 170 36 . . . . . Entropic 1670 | . . . . . . . . . . . . . . . . . . . . . . . . 438 . . . . . . . 1232 Highest Corruption 32 | . . . . . . 9 8 7 3 3 1 3 4 2 3 16 14 . . 17 3 3 9 7 7 3 9 1 3 4 6 32 Average Corruption 4 | . . . . . . 6 7 3 3 3 1 1 3 2 2 8 6 . . 14 2 1 4 4 4 2 2 1 1 2 1 7 Corruption Purged 90 | . . . . . . 2 1 4 . . . . 2 . . 7 14 . . . 3 6 9 . 12 3 6 . 7 . 7 7 Effects 529 | . . . . . . 36 24 31 3 12 . 13 10 2 5 75 75 . . 38 12 6 19 . 30 28 21 . 6 10 10 63 Message Errors 108 | . . . . . . 9 5 8 . 1 . 4 1 1 2 14 18 . . 5 3 2 5 . 5 7 5 . 3 3 3 4 Matter Fused 85 | . . . . . . 8 5 3 3 3 . 3 3 . 1 10 16 . . 2 1 . 6 . 6 6 2 . . 2 1 4 Heat Flow Errors 47 | . . . . . . 2 4 3 . 2 . 1 1 . 1 8 4 . . 2 . 1 4 . 5 2 4 . . . . 3 Energy Discharges 59 | . . . . . . 5 . 8 . 2 . 1 1 . . 7 10 . . 1 3 2 1 . . 2 3 . 3 3 3 4 Parts Rejected 4 | . . . . . . . . . . . . . . . . . . . . 1 . . . . . . . . . . . 3 Data Loss (minor) 66 | . . . . . . 5 4 2 . 2 . 2 4 1 1 4 7 . . 5 2 1 3 . 10 5 3 . . 2 . 3 Data Loss (major) 12 | . . . . . . . 2 1 . . . . . . . 2 2 . . 1 . . . . 3 . 1 . . . . . Misfires 13 | . . . . . . . 1 1 . . . . . . . 7 2 . . 1 . . . . . . . . . . . 1 Alerts 3 | . . . . . . . . . . . . . . . . 1 1 . . . . . . . . . . . . . . 1 Misdirections 11 | . . . . . . . . . . . . . . . . 3 4 . . 2 . . . . . . . . . . . 2 Targeting Errors 104 | . . . . . . 5 3 5 . 2 . 2 . . . 15 6 . . 17 3 . . . 1 6 3 . . . 2 34 Weapon Failures 17 | . . . . . . 2 . . . . . . . . . 4 5 . . 1 . . . . . . . . . . 1 4 Overload Shots . | . . . . . . . . . . . . . . . . . . . . . . . . . . . . . . . . . Overflow Damage 1642 | . 2 . . . 2 182 . . . 26 15 35 . . . 20 . . 22 80 10 . 124 109 . 56 204 32 93 98 274 258 Projectiles 1230 | . 2 . . . 2 68 . . . . . . . . . 20 . . 22 . 10 . . 109 . 38 204 32 93 98 274 258 Explosions 406 | . . . . . . 114 . . . 26 15 35 . . . . . . . 80 . . 124 . . 12 . . . . . . Melee 6 | . . . . . . . . . . . . . . . . . . . . . . . . . . 6 . . . . . . Knockbacks 15 | . 7 3 . . 5 . . . . . . . . . . . . . . . . . . . . . . . . . . . Impact . | . . . . . . . . . . . . . . . . . . . . . . . . . . . . . . . . . Kinetic 15 | . 7 3 . . 5 . . . . . . . . . . . . . . . . . . . . . . . . . . . Secondary . | . . . . . . . . . . . . . . . . . . . . . . . . . . . . . . . . . Self-Inflicted Damage 1012 | . . . . . . 234 . 53 . . 131 41 . . . 110 . . . 92 . . 69 . . 71 85 126 . . . . Shots 22 | . . . . . . 3 . 3 . . 2 3 . . . 1 . . . 1 . . 2 . . 1 1 5 . . . . Rammed . | . . . . . . . . . . . . . . . . . . . . . . . . . . . . . . . . . Targets Rammed . | . . . . . . . . . . . . . . . . . . . . . . . . . . . . . . . . . Kicked . | . . . . . . . . . . . . . . . . . . . . . . . . . . . . . . . . . Crushed . | . . . . . . . . . . . . . . . . . . . . . . . . . . . . . . . . . Highest Temperature 372 | . 189 28 126 18 269 318 244 285 . 245 178 337 326 . 194 259 246 152 228 146 185 123 218 303 277 219 354 189 372 260 70 279 Average Temperature 74 | . 49 12 46 9 66 82 84 114 . 138 61 105 119 . 62 47 44 52 96 21 63 38 35 78 94 75 75 78 119 85 25 79 Received Heat Transfer 5908 | . 525 60 . 9 324 783 135 234 . . 171 27 105 . 60 468 348 17 24 270 228 126 192 451 57 26 306 78 132 80 12 660 Effects 11 | . . . . . . 4 1 . . 1 . 1 . . . . . . . . . . . 1 3 . . . . . . . Energy Bleed 3 | . . . . . . 1 1 . . 1 . . . . . . . . . . . . . . . . . . . . . . Interference 7 | . . . . . . 3 . . . . . . . . . . . . . . . . . 1 3 . . . . . . . Damage (minor) 1 | . . . . . . . . . . . . 1 . . . . . . . . . . . . . . . . . . . . Siege Activations 57 | . . . . . . . . . . . . . . . . . . . . 2 5 5 3 . . 1 4 5 6 10 6 10 Total Turns 902 | . . . . . . . . . . . . . . . . . . . . 44 119 120 96 . . 6 36 31 74 120 55 201 Longest Duration 55 | . . . . . . . . . . . . . . . . . . . . 31 36 51 55 . . 6 23 19 22 25 21 48 Robots Corrupted 90 | . . . . . . 1 . 1 . 1 1 . . . . 5 4 2 1 1 5 . . . . 6 14 15 8 15 8 2 Combat Hostiles 84 | . . . . . . . . 1 . 1 1 . . . . 5 4 2 1 1 4 . . . . 6 12 15 8 13 8 2 Parts Fried 200 | . . . . . . 1 . 1 . 3 2 . . . 2 13 13 8 4 2 17 . . . . 16 34 17 21 17 20 9 Impact Corruptions . | . . . . . . . . . . . . . . . . . . . . . . . . . . . . . . . . . Robots Melted 2 | . . . . . . . . . . . . . . . . . . . . . . . . . . . 1 . . . 1 . Combat Hostiles 2 | . . . . . . . . . . . . . . . . . . . . . . . . . . . 1 . . . 1 . Parts Melted 33 | . 2 . . . 1 . . . . . . . . . 1 . . . . . . . . . . . 5 . 6 10 7 1 Heat Transferred 18684 | . 958 . 1100 . 913 470 . . . . 100 . . . 50 . . . . 100 . . . . . 200 1382 361 1110 1974 1036 8930 Parts Sabotaged . | . . . . . . . . . . . . . . . . . . . . . . . . . . . . . . . . . Parts Stolen . | . . . . . . . . . . . . . . . . . . . . . . . . . . . . . . . . . Parts Stripped . | . . . . . . . . . . . . . . . . . . . . . . . . . . . . . . . . . Power Chain Reactions 8 | . . . . . . . . . . . . . . . 1 . . . . . . . . . . 1 1 3 . 1 . 1 Missiles Intercepted . | . . . . . . . . . . . . . . . . . . . . . . . . . . . . . . . . . Alert | -11 -10 -10 -10 -9 -8 -7 -7 -7 -7 -6 -6 -6 -6 -6 -5 -5 -5 -5 -5 -5 -4 -4 -4 -4 -3 -3 -3 -2 -2 -2 -1 -1 ------- Run | Scr Mat Min Exi Min Mat Fac Low Low Dat Pro Fac Low Low Zio Pro Fac Ext Cet Arc Hub Fac Upp Upp War Pro Res Qua Res Tes Sec Acc Com Peak Influence 958 | 45 226 41 . 96 184 725 . . . . 682 . . . . 573 397 958 572 832 788 . . . . 127 218 501 365 626 456 276 Initial 402 | . 29 36 . . . . . . . . 63 . . . . 94 124 102 383 9 402 . . . . . 4 117 218 89 180 . Average 208 | 19 100 13 . 32 70 245 . . . . 336 . . . . 226 120 618 314 342 416 . . . . 53 89 299 154 370 262 72 Maximum Alert Level 3 | . 1 . . . . 3 . . . . 2 . . . . 2 1 3 2 3 3 . . . . . 1 2 1 2 2 1 Low Security (%) 58 | 100 86 100 . 100 100 59 . . . . 38 . . . . 40 74 5 25 28 4 . . . . 100 94 20 68 11 28 93 Level 1 25 | . 13 . . . . 20 . . . . . . . . . 50 25 4 50 36 56 . . . . . 5 66 31 41 61 6 Level 2 13 | . . . . . . 15 . . . . 61 . . . . 9 . 49 24 29 14 . . . . . . 13 . 46 9 . Level 3 2 | . . . . . . 5 . . . . . . . . . . . 40 . 5 24 . . . . . . . . . . . Level 4 . | . . . . . . . . . . . . . . . . . . . . . . . . . . . . . . . . . Level 5 . | . . . . . . . . . . . . . . . . . . . . . . . . . . . . . . . . . High Security . | . . . . . . . . . . . . . . . . . . . . . . . . . . . . . . . . . Max Security . | . . . . . . . . . . . . . . . . . . . . . . . . . . . . . . . . . Squads Dispatched 83 | . 7 . . . 1 12 . 1 . . 7 . . . . 5 5 1 . 11 3 . 1 . . 2 5 3 11 2 5 1 Investigation 15 | . 4 . . . . 2 . . . . 2 . . . . . 3 1 . . . . . . . 1 . . . . 2 . Extermination 28 | . . . . . . 4 . . . . 4 . . . . 3 . . . 1 1 . . . . . 4 . 6 2 2 1 Reinforcement 26 | . 3 . . . . 5 . . . . . . . . . 2 2 . . 5 1 . . . . 1 1 3 2 . 1 . Assault 6 | . . . . . . 1 . 1 . . 1 . . . . . . . . 1 1 . 1 . . . . . . . . . Garrison 8 | . . . . . 1 . . . . . . . . . . . . . . 4 . . . . . . . . 3 . . . Intercept . | . . . . . . . . . . . . . . . . . . . . . . . . . . . . . . . . . Construction Impeded 5 | . . . . . . 3 . . . . . . . . . . . . . 2 . . . . . . . . . . . . Haulers Reinforced 3 | . . . . . . . . . . . . . . . . 2 . . . . . . . . . . . 1 . . . . Stealth | -11 -10 -10 -10 -9 -8 -7 -7 -7 -7 -6 -6 -6 -6 -6 -5 -5 -5 -5 -5 -5 -4 -4 -4 -4 -3 -3 -3 -2 -2 -2 -1 -1 --------- Run | Scr Mat Min Exi Min Mat Fac Low Low Dat Pro Fac Low Low Zio Pro Fac Ext Cet Arc Hub Fac Upp Upp War Pro Res Qua Res Tes Sec Acc Com Distress Signals 45 | . 1 . . 1 1 . . . . . . . . . . 1 2 2 . 1 2 . . 1 . 8 2 13 1 3 . 6 Communications Jammed 13 | . . . . . . . . . . . . . . . . 13 . . . . . . . . . . . . . . . . Distress Signals 7 | . . . . . . . . . . . . . . . . 7 . . . . . . . . . . . . . . . . Times Spotted 717 | . 37 1 . 11 23 43 6 10 . 9 27 10 4 . 22 51 30 22 8 37 23 14 14 68 8 20 43 30 28 29 24 65 Peak Tracking Total 18 | . 4 1 . 5 5 4 4 7 . 3 5 4 3 . 4 7 4 5 2 7 5 4 8 18 3 7 6 6 2 5 5 13 Tactical Retreats 31 | . 6 . . 3 2 1 . 1 . 1 . . . . 2 3 . . . 1 1 2 . 1 1 . 1 1 1 1 . 2 Traps | -11 -10 -10 -10 -9 -8 -7 -7 -7 -7 -6 -6 -6 -6 -6 -5 -5 -5 -5 -5 -5 -4 -4 -4 -4 -3 -3 -3 -2 -2 -2 -1 -1 ------- Run | Scr Mat Min Exi Min Mat Fac Low Low Dat Pro Fac Low Low Zio Pro Fac Ext Cet Arc Hub Fac Upp Upp War Pro Res Qua Res Tes Sec Acc Com Traps Triggered 24 | . 5 . . . . 1 . . . . . . . . . 3 4 . . 4 . . . . . 2 1 . . . 4 . Indirectly . | . . . . . . . . . . . . . . . . . . . . . . . . . . . . . . . . . Trap Hack Attempts . | . . . . . . . . . . . . . . . . . . . . . . . . . . . . . . . . . Triggered . | . . . . . . . . . . . . . . . . . . . . . . . . . . . . . . . . . Disarmed . | . . . . . . . . . . . . . . . . . . . . . . . . . . . . . . . . . Reprogrammed . | . . . . . . . . . . . . . . . . . . . . . . . . . . . . . . . . . Reused . | . . . . . . . . . . . . . . . . . . . . . . . . . . . . . . . . . Traps Extracted . | . . . . . . . . . . . . . . . . . . . . . . . . . . . . . . . . . Installed . | . . . . . . . . . . . . . . . . . . . . . . . . . . . . . . . . . Triggered 24 | . . . . . . . . . . . . . . . . . 1 . . . . . . 21 . . 2 . . . . . Machines | -11 -10 -10 -10 -9 -8 -7 -7 -7 -7 -6 -6 -6 -6 -6 -5 -5 -5 -5 -5 -5 -4 -4 -4 -4 -3 -3 -3 -2 -2 -2 -1 -1 ---------- Run | Scr Mat Min Exi Min Mat Fac Low Low Dat Pro Fac Low Low Zio Pro Fac Ext Cet Arc Hub Fac Upp Upp War Pro Res Qua Res Tes Sec Acc Com Machines Disabled 56 | . . . . . 1 8 . 1 . . 5 . . . . 1 2 . 1 10 3 . 2 . . . 7 1 7 6 . 1 Max in Single Turn 5 | . . . . . 1 5 . 1 . . 5 . . . . 1 1 . 1 4 1 . 2 . . . 1 1 1 1 . 1 Garrison Access 3 | . . . . . . . . . . . . . . . . . . . . . 2 . . . . . . . . 1 . . Network Hub 1 | . . . . . . . . . . . . . . . . . . . . 1 . . . . . . . . . . . . Machines Sabotaged . | . . . . . . . . . . . . . . . . . . . . . . . . . . . . . . . . . Garrisons Compromised . | . . . . . . . . . . . . . . . . . . . . . . . . . . . . . . . . . Overloaded Fab Kills . | . . . . . . . . . . . . . . . . . . . . . . . . . . . . . . . . . Fab Network Shutdowns 2 | . . . . . . . . . . . 1 . . . . . . . . . 1 . . . . . . . . . . . Hacking | -11 -10 -10 -10 -9 -8 -7 -7 -7 -7 -6 -6 -6 -6 -6 -5 -5 -5 -5 -5 -5 -4 -4 -4 -4 -3 -3 -3 -2 -2 -2 -1 -1 --------- Run | Scr Mat Min Exi Min Mat Fac Low Low Dat Pro Fac Low Low Zio Pro Fac Ext Cet Arc Hub Fac Upp Upp War Pro Res Qua Res Tes Sec Acc Com Machines Accessed 103 | . 5 . 1 . 5 6 . . 4 . 10 . . . . 11 6 3 . 8 8 . . 7 1 . 10 1 5 7 3 2 Terminals 66 | . 4 . . . 3 5 . . . . 4 . . . . 7 6 3 . 8 3 . . . 1 . 7 . 4 6 3 2 Fabricators 5 | . . . . . . . . . . . 1 . . . . 2 . . . . 1 . . . . . . . 1 . . . Repair Stations 6 | . . . . . 1 . . . . . 2 . . . . 1 . . . . . . . . . . 2 . . . . . Recycling Units 7 | . 1 . . . 1 1 . . . . 2 . . . . 1 . . . . 1 . . . . . . . . . . . Scanalyzers 2 | . . . . . . . . . . . . . . . . . . . . . 1 . . . . . 1 . . . . . Garrison Access 5 | . . . . . . . . . . . 1 . . . . . . . . . 2 . . . . . . 1 . 1 . . Total Hacks 342 | . 18 . 23 . 16 15 . . 28 . 25 . . . . 25 18 5 . 18 23 . . 10 1 . 44 1 29 23 16 4 Successful 200 | . 6 . 23 . 14 5 . . 28 . 17 . . . . 9 5 2 . 8 18 . . 10 1 . 20 . 17 9 7 1 Failed 142 | . 12 . . . 2 10 . . . . 8 . . . . 16 13 3 . 10 5 . . . . . 24 1 12 14 9 3 Catastrophic 34 | . 1 . . . . 2 . . . . . . . . . 6 3 1 . . 1 . . . . . 9 . 2 5 3 1 Database Lockouts . | . . . . . . . . . . . . . . . . . . . . . . . . . . . . . . . . . Manual 119 | . 12 . . . 8 4 . . . . 4 . . . . 13 3 4 . 7 10 . 1 1 . . 16 . 16 5 12 3 Terminals 206 | . 13 . . . 10 12 . . . . 8 . . . . 16 18 5 . 18 11 . . . 1 . 33 . 20 21 16 4 Fabricators 23 | . . . . . . . . . . . 5 . . . . 3 . . . . 6 . . . . . . . 9 . . . Repair Stations 16 | . . . . . 5 . . . . . 4 . . . . 2 . . . . . . . . . . 5 . . . . . Recycling Units 22 | . 5 . . . 1 3 . . . . 6 . . . . 4 . . . . 3 . . . . . . . . . . . Scanalyzers 7 | . . . . . . . . . . . . . . . . . . . . . 1 . . . . . 6 . . . . . Garrison Access 7 | . . . . . . . . . . . 2 . . . . . . . . . 2 . . . . . . 1 . 2 . . Terminal Hacks 123 | . 2 . 23 . 4 3 . . 28 . 3 . . . . 4 5 2 . 6 5 . . 10 1 . 5 . 8 7 6 1 Record 45 | . . . 23 . . . . . 11 . . . . . . . . 2 . . . . . 8 1 . . . . . . . Part Schematic 11 | . 1 . . . 1 . . . 8 . . . . . . . . . . . . . . . . . . . 1 . . . Robot Schematic 6 | . . . . . . . . . 6 . . . . . . . . . . . . . . . . . . . . . . . Prototype ID Bank 5 | . . . . . . . . . 3 . 1 . . . . . . . . 1 . . . . . . . . . . . . Open Door 3 | . . . . . . . . . . . . . . . . . . . . . . . . 2 . . . . . . . 1 Level Access Points 2 | . . . . . . . . . . . . . . . . . . . . . . . . . . . 1 . . 1 . . Branch Access Points 3 | . . . . . . 1 . . . . 1 . . . . . . . . . 1 . . . . . . . . . . . Emergency Access Points 1 | . . . . . . . . . . . . . . . . . . . . . . . . . . . . . 1 . . . Terminal Index 1 | . . . . . . . . . . . . . . . . . . . . . . . . . . . . . . . 1 . Garrison Index 1 | . . . . . . . . . . . . . . . . . . . . 1 . . . . . . . . . . . . Alert Level 6 | . . . . . 1 . . . . . . . . . . . . . . . 1 . . . . . 1 . 1 1 1 . Unreport Threat 16 | . . . . . 1 . . . . . . . . . . 2 1 . . . 1 . . . . . 3 . 2 2 4 . Locate Traps 16 | . 1 . . . 1 2 . . . . 1 . . . . 1 4 . . 2 2 . . . . . . . . 2 . . Maintenance Status 1 | . . . . . . . . . . . . . . . . 1 . . . . . . . . . . . . . . . . Registered Components 1 | . . . . . . . . . . . . . . . . . . . . . . . . . . . . . 1 . . . Zone Layout 5 | . . . . . . . . . . . . . . . . . . . . 2 . . . . . . . . 2 1 . . Fabricator Hacks 17 | . . . . . . . . . . . 5 . . . . 2 . . . . 5 . . . . . . . 5 . . . Load Schematic 6 | . . . . . . . . . . . 2 . . . . 1 . . . . 1 . . . . . . . 2 . . . Build 11 | . . . . . . . . . . . 3 . . . . 1 . . . . 4 . . . . . . . 3 . . . Repair Station Hacks 14 | . . . . . 5 . . . . . 4 . . . . 1 . . . . . . . . . . 4 . . . . . Scan Component 8 | . . . . . 3 . . . . . 2 . . . . 1 . . . . . . . . . . 2 . . . . . Repair 6 | . . . . . 2 . . . . . 2 . . . . . . . . . . . . . . . 2 . . . . . Recycling Unit Hacks 13 | . 3 . . . 1 2 . . . . 4 . . . . 1 . . . . 2 . . . . . . . . . . . Report Inventory 8 | . 1 . . . 1 1 . . . . 3 . . . . 1 . . . . 1 . . . . . . . . . . . Retrieve Matter 1 | . . . . . . 1 . . . . . . . . . . . . . . . . . . . . . . . . . . Retrieve Components 4 | . 2 . . . . . . . . . 1 . . . . . . . . . 1 . . . . . . . . . . . Scanalyzer 6 | . . . . . . . . . . . . . . . . . . . . . 1 . . . . . 5 . . . . . Insert Component 4 | . . . . . . . . . . . . . . . . . . . . . 1 . . . . . 3 . . . . . Analyze 2 | . . . . . . . . . . . . . . . . . . . . . . . . . . . 2 . . . . . Garrison Access Hacks 3 | . . . . . . . . . . . . . . . . . . . . . 2 . . . . . . . . 1 . . Seal Access 3 | . . . . . . . . . . . . . . . . . . . . . 2 . . . . . . . . 1 . . Unauthorized Hacks 24 | . 1 . . . 4 . . . . . 1 . . . . 1 . . . 2 3 . . . . . 6 . 4 1 1 . Terminals 22 | . 1 . . . 4 . . . . . 1 . . . . 1 . . . 2 2 . . . . . 6 . 3 1 1 . Track 7 | . . . . . 2 . . . . . . . . . . . . . . . . . . . . . 3 . 1 1 . . Botnet 15 | . 1 . . . 2 . . . . . 1 . . . . 1 . . . 2 2 . . . . . 3 . 2 . 1 . Fabricators 2 | . . . . . . . . . . . . . . . . . . . . . 1 . . . . . . . 1 . . . Siphon 2 | . . . . . . . . . . . . . . . . . . . . . 1 . . . . . . . 1 . . . Repair Stations . | . . . . . . . . . . . . . . . . . . . . . . . . . . . . . . . . . Recycling Units . | . . . . . . . . . . . . . . . . . . . . . . . . . . . . . . . . . Scanalyzers . | . . . . . . . . . . . . . . . . . . . . . . . . . . . . . . . . . Garrison Access . | . . . . . . . . . . . . . . . . . . . . . . . . . . . . . . . . . Data Cores Recovered 6 | . . . . . 1 . . . . . 1 . . . . . . . . . . . . . . . 3 . . . . 1 Used 2 | . . . . . . . . . . . . . . . . . . . . . . . . . . . 1 . . . . 1 Hacking Detections 74 | . 5 . . . 4 6 . . . . 9 . . . . 11 6 3 . 8 5 . . . . . 6 1 . 6 3 1 Full Trace Events 9 | . 3 . . . . 1 . . . . 1 . . . . . 2 1 . . . . . . . . . . . . 1 . Feedback Events 1 | . . . . . . . . . . . . . . . . . . . . . . . . . . . . . . . 1 . Corruption 1 | . . . . . . . . . . . . . . . . . . . . . . . . . . . . . . . 1 . Feedback Blocked . | . . . . . . . . . . . . . . . . . . . . . . . . . . . . . . . . . Robot Schematics Acquired 6 | . . . . . . . . . 6 . . . . . . . . . . . . . . . . . . . . . . . Robots Built . | . . . . . . . . . . . . . . . . . . . . . . . . . . . . . . . . . Matter . | . . . . . . . . . . . . . . . . . . . . . . . . . . . . . . . . . Time . | . . . . . . . . . . . . . . . . . . . . . . . . . . . . . . . . . Total Robot Build Rating . | . . . . . . . . . . . . . . . . . . . . . . . . . . . . . . . . . Part Schematics Acquired 12 | . 1 . . . 1 . . . 8 . . . . . . . . . . . . . . . . . 1 . 1 . . . Parts Built 11 | . . . . . . . . . . . 3 . . . . . . . . . 5 . . . . . . . 3 . . . Matter 1588 | . . . . . . . . . . . 328 . . . . 318 . . . . 462 . . . . . . . 480 . . . Time 877 | . . . . . . . . . . . 164 . . . . 169 . . . . 270 . . . . . . . 274 . . . Total Part Build Rating 35 | . . . . . . . . . . . 4 . . . . . . . . . 17 . . . . . . . 14 . . . Parts Repaired 6 | . . . . . 2 . . . . . 2 . . . . . . . . . . . . . . . 2 . . . . . Time 220 | . . . . . 70 . . . . . 72 . . . . . . . . . . . . . . . 78 . . . . . Parts Recycled . | . . . . . . . . . . . . . . . . . . . . . . . . . . . . . . . . . Recycled Matter . | . . . . . . . . . . . . . . . . . . . . . . . . . . . . . . . . . Retrieved Matter 114 | . . . . . . 114 . . . . . . . . . . . . . . . . . . . . . . . . . . Retrieved Components 30 | . 19 . . . . . . . . . 1 . . . . . . . . . 10 . . . . . . . . . . . Parts Scanalyzed 2 | . . . . . . . . . . . . . . . . . . . . . . . . . . . 2 . . . . . Part Schematics Acquired 1 | . . . . . . . . . . . . . . . . . . . . . . . . . . . 1 . . . . . Parts Damaged . | . . . . . . . . . . . . . . . . . . . . . . . . . . . . . . . . . Bothacking | -11 -10 -10 -10 -9 -8 -7 -7 -7 -7 -6 -6 -6 -6 -6 -5 -5 -5 -5 -5 -5 -4 -4 -4 -4 -3 -3 -3 -2 -2 -2 -1 -1 ------------ Run | Scr Mat Min Exi Min Mat Fac Low Low Dat Pro Fac Low Low Zio Pro Fac Ext Cet Arc Hub Fac Upp Upp War Pro Res Qua Res Tes Sec Acc Com Used RIF Installer . | . . . . . . . . . . . . . . . . . . . . . . . . . . . . . . . . . Robots Hacked 2 | . . . . . . . . . . . . . . . . . 2 . . . . . . . . . . . . . . . Non-combat 2 | . . . . . . . . . . . . . . . . . 2 . . . . . . . . . . . . . . . Combat . | . . . . . . . . . . . . . . . . . . . . . . . . . . . . . . . . . Robot Hacks Applied 4 | . . . . . . . . . . . . . . . . . 4 . . . . . . . . . . . . . . . no_distress 4 | . . . . . . . . . . . . . . . . . 4 . . . . . . . . . . . . . . . Relay Couplers Released 3 | . . . . . . . . . . . . . . . . . . . . . . . . . . . . . . 3 . . Programmers 3 | . . . . . . . . . . . . . . . . . . . . . . . . . . . . . . 3 . . Robots Rewired 11 | . . . . . . . . 1 . . . . . . . . 10 . . . . . . . . . . . . . . . Allies Hacked 1 | . . . . . . . . . . . . . . . 1 . . . . . . . . . . . . . . . . . Hacks Repelled . | . . . . . . . . . . . . . . . . . . . . . . . . . . . . . . . . . Allies | -11 -10 -10 -10 -9 -8 -7 -7 -7 -7 -6 -6 -6 -6 -6 -5 -5 -5 -5 -5 -5 -4 -4 -4 -4 -3 -3 -3 -2 -2 -2 -1 -1 -------- Run | Scr Mat Min Exi Min Mat Fac Low Low Dat Pro Fac Low Low Zio Pro Fac Ext Cet Arc Hub Fac Upp Upp War Pro Res Qua Res Tes Sec Acc Com Total Allies 30 | . . . . 3 . . . 1 . 1 . . . 3 . . 17 5 . . . . . . . . . . . . . . Largest Group 15 | . . . . 3 2 . . 1 . 1 1 . . 3 3 . 14 15 6 5 . . . . . . . . . . . . Highest-Rated Group 881 | . . . . 40 32 . . 32 . 94 94 . . 83 83 . 515 881 484 328 . . . . . . . . . . . . Highest-Rated Ally 156 | . . . . 16 16 . . 32 . 94 94 . . 30 30 . 156 156 156 94 . . . . . . . . . . . . Total Orders . | . . . . . . . . . . . . . . . . . . . . . . . . . . . . . . . . . Ally Attacks 280 | . . . . 36 4 . . 4 . 21 22 . . . 16 . 21 117 11 28 . . . . . . . . . . . . Total Damage 7724 | . . . . 406 68 . . 103 . 512 796 . . . 358 . 548 3670 364 899 . . . . . . . . . . . . Kills 68 | . . . . 7 1 . . . . 5 11 . . . 3 . 4 26 3 8 . . . . . . . . . . . . Allies Corrupted . | . . . . . . . . . . . . . . . . . . . . . . . . . . . . . . . . . Allies Melted 1 | . . . . . . . . . . . . . . . . . . . . . . . . . . . . . . . . 1 Intel | -11 -10 -10 -10 -9 -8 -7 -7 -7 -7 -6 -6 -6 -6 -6 -5 -5 -5 -5 -5 -5 -4 -4 -4 -4 -3 -3 -3 -2 -2 -2 -1 -1 ------- Run | Scr Mat Min Exi Min Mat Fac Low Low Dat Pro Fac Low Low Zio Pro Fac Ext Cet Arc Hub Fac Upp Upp War Pro Res Qua Res Tes Sec Acc Com Robot Analysis Total . | . . . . . . . . . . . . . . . . . . . . . . . . . . . . . . . . . Derelict Logs Recovered 13 | . . 2 . 2 . . . 2 . . . 1 1 3 . . . . . . . 2 . . . . . . . . . . Drone Launches . | . . . . . . . . . . . . . . . . . . . . . . . . . . . . . . . . . Drone Recoveries . | . . . . . . . . . . . . . . . . . . . . . . . . . . . . . . . . . Exploration | -11 -10 -10 -10 -9 -8 -7 -7 -7 -7 -6 -6 -6 -6 -6 -5 -5 -5 -5 -5 -5 -4 -4 -4 -4 -3 -3 -3 -2 -2 -2 -1 -1 ------------- Run | Scr Mat Min Exi Min Mat Fac Low Low Dat Pro Fac Low Low Zio Pro Fac Ext Cet Arc Hub Fac Upp Upp War Pro Res Qua Res Tes Sec Acc Com Turns Passed 47337 | 265 1630 1173 1165 570 1701 2072 798 945 186 717 2593 878 459 1507 691 2460 4180 675 1600 840 1687 1804 2279 1818 1855 1432 1945 1260 2087 1574 1200 1291 Spaces Moved 19469 | 113 783 623 676 263 781 849 406 465 100 364 1222 420 264 982 393 892 1503 275 225 353 652 422 607 786 416 575 912 557 929 627 554 480 Core 44 | 7 . . . . . . . . . . . . . . . . . . . . . . . . . . . . . . . 37 Treads 15283 | 106 428 . . . 580 849 406 465 100 364 1222 420 4 . 32 589 1385 275 225 353 652 422 607 786 416 575 912 557 929 627 554 443 Legs 2367 | . 313 623 676 263 201 . . . . . . . . . . 173 118 . . . . . . . . . . . . . . . Wheels 1775 | . 42 . . . . . . . . . . . 260 982 361 130 . . . . . . . . . . . . . . . . Hover . | . . . . . . . . . . . . . . . . . . . . . . . . . . . . . . . . . Flight . | . . . . . . . . . . . . . . . . . . . . . . . . . . . . . . . . . Fastest Speed 50 | 50 110 180 150 150 150 175 180 180 180 180 180 180 140 140 140 140 180 160 160 160 160 195 195 175 190 190 165 165 165 180 165 50 Average Speed 175 | 153 157 180 154 150 173 178 180 180 180 180 180 180 150 149 148 191 181 174 179 167 179 195 195 195 190 199 169 178 166 180 174 150 Slowest Speed 280 | 160 210 180 180 150 240 192 180 200 180 180 200 200 180 150 200 280 260 180 180 180 195 195 195 210 190 210 200 187 180 180 180 165 Overloaded Moves . | . . . . . . . . . . . . . . . . . . . . . . . . . . . . . . . . . Propulsion Burnouts . | . . . . . . . . . . . . . . . . . . . . . . . . . . . . . . . . . Robots Hopped . | . . . . . . . . . . . . . . . . . . . . . . . . . . . . . . . . . Cave-ins Triggered . | . . . . . . . . . . . . . . . . . . . . . . . . . . . . . . . . . Exploration Rate (%) 53 | 5 93 94 91 44 46 26 52 66 68 48 28 56 40 83 60 26 96 71 96 47 13 56 49 83 51 19 92 21 81 37 16 17 Regions Visited 32 Branch Regions 23 Pre-discovered Areas 6 | . . 1 1 . . . . . 1 . . . . 1 . . . . . . . 1 . 1 . . . . . . . . Known Exits Taken 14 | . . . . . 1 1 . . . 1 1 . . . 1 1 . . . 1 1 . . . . 1 1 1 1 1 1 . Unknown Exits Taken 18 | 1 1 1 1 1 . . 1 1 1 . . 1 1 1 . . 1 1 1 . . 1 1 1 1 . . . . . . . Scrap Searched 24 | . . 2 . 2 . . . 2 . 1 . 3 8 4 . . . . . . . 1 1 . . . . . . . . . Spaces Dug 90 | . . . . . 6 . . . . . 1 1 . . 4 . . . . 4 7 . 8 4 . 8 7 16 1 19 4 . Terrain Destroyed 878 | . . . . . 8 151 4 17 . 4 33 15 . . 26 70 6 . 3 196 22 12 127 42 9 13 16 38 4 46 7 9 Melee 26 | . . . . . . . . . . . 1 . . . . . . . . . . . . . . 8 . 3 1 13 . . Projectile 240 | . . . . . 2 2 1 . . . . 3 . . 1 29 6 . 3 30 22 12 32 26 9 . 11 22 3 13 7 6 AOE 612 | . . . . . 6 149 3 17 . 4 32 12 . . 25 41 . . . 166 . . 95 16 . 5 5 13 . 20 . 3 Terrain Rammed . | . . . . . . . . . . . . . . . . . . . . . . . . . . . . . . . . . Walls Destroyed . | . . . . . . . . . . . . . . . . . . . . . . . . . . . . . . . . . Machines Disabled . | . . . . . . . . . . . . . . . . . . . . . . . . . . . . . . . . . Actions | -11 -10 -10 -10 -9 -8 -7 -7 -7 -7 -6 -6 -6 -6 -6 -5 -5 -5 -5 -5 -5 -4 -4 -4 -4 -3 -3 -3 -2 -2 -2 -1 -1 --------- Run | Scr Mat Min Exi Min Mat Fac Low Low Dat Pro Fac Low Low Zio Pro Fac Ext Cet Arc Hub Fac Upp Upp War Pro Res Qua Res Tes Sec Acc Com Total 30646 | 152 1026 668 742 424 1011 1209 441 523 106 405 1582 483 303 1017 447 1382 2818 457 1406 487 1044 1332 1599 955 1438 793 1305 806 1441 1040 763 1041 Wait 7443 | . 81 29 8 149 110 144 12 6 1 19 225 16 14 17 13 210 1116 139 1165 50 216 867 903 35 952 39 154 83 283 185 72 130 Move 19436 | 112 782 622 675 262 780 848 405 464 99 363 1221 419 263 981 392 891 1502 274 224 352 651 421 606 785 415 574 911 556 928 626 553 479 Hop . | . . . . . . . . . . . . . . . . . . . . . . . . . . . . . . . . . Pick Up 336 | 6 17 4 10 3 22 23 1 2 . 3 27 3 3 3 2 36 9 3 . 4 28 2 4 21 14 18 19 10 15 7 5 12 Fast Attach 300 | 6 13 . 4 . 13 9 1 2 3 . 17 4 1 6 1 17 25 7 4 4 12 . 2 13 5 39 22 12 27 9 7 15 Attach 187 | . 8 1 . . 7 14 1 5 . . 8 4 5 . 5 24 5 . . . 12 1 7 8 12 8 11 4 8 4 2 23 Detach 47 | . 2 . 1 . . 1 . . . . 4 2 2 . . 6 . 2 . . . . 3 2 1 4 3 1 7 . . 6 Swap 444 | . 4 . 3 2 7 35 8 18 . 4 13 4 1 1 8 24 19 8 3 16 30 12 15 12 7 8 23 24 46 31 30 28 Drop 515 | . 13 4 11 1 19 34 . 1 3 3 41 3 3 9 . 34 36 14 3 6 32 . 2 22 12 57 43 22 40 13 9 25 Fire 1853 | 28 106 8 30 7 53 101 13 24 . 13 24 28 11 . 26 136 77 10 7 55 63 29 57 57 20 28 116 91 75 152 85 323 Melee 67 | . . . . . . . . 1 . . 2 . . . . . 21 . . . . . . . . 14 1 3 12 13 . . Ram . | . . . . . . . . . . . . . . . . . . . . . . . . . . . . . . . . . Kick . | . . . . . . . . . . . . . . . . . . . . . . . . . . . . . . . . . Crush . | . . . . . . . . . . . . . . . . . . . . . . . . . . . . . . . . . Escape Stasis 18 | . . . . . . . . . . . . . . . . 4 8 . . . . . . . . 4 2 . . . . . Rewire . | . . . . . . . . . . . . . . . . . . . . . . . . . . . . . . . . . Trap . | . . . . . . . . . . . . . . . . . . . . . . . . . . . . . . . . . Miscellaneous . | . . . . . . . . . . . . . . . . . . . . . . . . . . . . . . . . . Route ------- -11/Scrapyard -10/Materials (discovered 4 exits: [*Mat x3] / [*Min]) -10/Mines (discovered 3 exits: [*Mat x2] / *Exi) -10/Exiles (discovered 2 exits: [*Min x2]) -9/Mines -8/Materials (discovered 2 exits: *Fac x2) -7/Factory (discovered 3 exits: *Fac / *Low x2) -7/Lower Caves -7/Lower Caves (discovered 2 exits: Fac / *Dat) -7/Data Miner -6/Proximity Caves -6/Factory (discovered 3 exits: *Fac / *Low x2) -6/Lower Caves -6/Lower Caves -6/Zion -5/Proximity Caves -5/Factory (discovered 3 exits: Fac / *Upp / *Ext) -5/Extension (discovered 2 exits: *Fac / *Cet) -5/Cetus (discovered 2 exits: *Fac / [*Arc]) -5/Archives (discovered 3 exits: *Fac / *Hub x2) -5/Hub_04(d) (discovered 2 exits: *Fac x2) -4/Factory (discovered 5 exits: [*Res x2] / *Upp x2 / Arm) -4/Upper Caves -4/Upper Caves -4/Warlord -3/Proximity Caves -3/Research -3/Quarantine -2/Research -2/Testing (discovered 2 exits: *Acc / *Sec) -2/Section 7 -1/Access -1/Command (discovered 2 exits: *Sur x2) To Epsilon Eridani History --------- Turn | Location | Event 7 | -11/Scrapyard | Discovered new exit (range 15) 266 | -11/Scrapyard | Entered Materials 315 | -10/Materials | Build established: Mutant 551 | -10/Materials | Discovered new exit (range 8) 829 | -10/Materials | Discovered new exit (range 16) 1159 | -10/Materials | Lost 6 parts (1p2n3w) 1574 | -10/Materials | Discovered new exit (range 8) 1739 | -10/Materials | Discovered new exit (range 10) 1741 | -10/Materials | Core integrity fell below 50% 1896 | -10/Materials | Entered Mines 1898 | -10/Mines | Met a Derelict bent on vengeance 1983 | -10/Mines | Excavation squad dispatched 1983 | -10/Mines | A large section of the Mines collapsed 2175 | -10/Mines | Discovered new exit (range 6) 2440 | -10/Mines | A weapon hastily lodged in a ceiling crevice suddenly fell to the ground 2465 | -10/Mines | Learned location of Storage (-9) 2565 | -10/Mines | Deemed a non-threat by the Exiles lab entrance 2565 | -10/Mines | Discovered new exit (range 5) 2607 | -10/Mines | Discovered new exit (range 6) 2747 | -10/Mines | Found a hidden stash of uninstalled traps 2945 | -10/Mines | Learned 2 Materials zone layouts 3069 | -10/Mines | Entered Exiles 3069 | -10/Exiles | Found Exiles lab destroyed 3095 | -10/Exiles | Discovered new exit (range 15) 3538 | -10/Exiles | Build established: Scavenger-Mutant 3919 | -10/Exiles | Learned location of Zion (-6) 4058 | -10/Exiles | Discovered new exit (range 14) 4234 | -10/Exiles | Entered Mines 4261 | -9/Mines | Assembled infested the area 4266 | -9/Mines | Assisted by a Guerilla fighting off Assembled 4439 | -9/Mines | Assisted by bots powering up and referring to "LRC-V3" 4541 | -9/Mines | Build established: Mutant 4553 | -9/Mines | Discovered new exit (range 14) 4563 | -9/Mines | Learned Materials terminal intel 4804 | -9/Mines | Entered Materials 4804 | -8/Materials | Accompanied by 2 allies 4804 | -8/Materials | Evolved 4 slots: Propulsion x1, Utility x2, Weapon x1 4805 | -8/Materials | Identified exit to Factory 4806 | -8/Materials | Loaded intel: 10 terminal locations 5091 | -8/Materials | Build established: Hauler-Gunner 5232 | -8/Materials | Repaired Hcp. Storage Unit 5648 | -8/Materials | Discovered exit to Factory (range 4) 6129 | -8/Materials | Garrison activated, responded to threat 6327 | -8/Materials | Repaired Gauss Rifle 6505 | -8/Materials | Entered Factory 6505 | -7/Factory | Evolved 2 slots: Utility x2 6825 | -7/Factory | Build established: Hauler-Tank 7139 | -7/Factory | Discovered new exit (range 8) 7309 | -7/Factory | Identified exit to Factory 7507 | -7/Factory | Identified exit to Lower Caves 8256 | -7/Factory | Lost 3 parts (2n1w) 8534 | -7/Factory | First assault squad dispatched 8577 | -7/Factory | Entered Lower Caves 8609 | -7/Lower Caves | Spotted B-75 Beast 8630 | -7/Lower Caves | Destroyed B-75 Beast 9350 | -7/Lower Caves | Discovered new exit (range 15) 9375 | -7/Lower Caves | Entered another Lower Caves area 9378 | -7/Lower Caves | Encountered a Warlord checkpoint 9482 | -7/Lower Caves | Learned Factory terminal intel 9791 | -7/Lower Caves | Attracted the attention of an 0b10 checkpoint 10002 | -7/Lower Caves | Attracted the attention of an 0b10 outpost 10045 | -7/Lower Caves | Lost 3 parts (1n2w) 10046 | -7/Lower Caves | Destroyed 7 combat bots 10160 | -7/Lower Caves | Spotted B-75 Beast 10207 | -7/Lower Caves | Destroyed B-75 Beast 10237 | -7/Lower Caves | Lost 3 parts (1n1u1w) 10311 | -7/Lower Caves | Discovered new exit (range 5) 10320 | -7/Lower Caves | Entered Data Miner 10322 | -7/Data Miner | Discovered new exit (range 6) 10356 | -7/Data Miner | Met Data Miner 10387 | -7/Data Miner | Learned location of Section 7 (-2) 10387 | -7/Data Miner | Acquired the access code to Warlord's prototype stash 10419 | -7/Data Miner | Received God Mode back door access code from Data Miner 10506 | -7/Data Miner | Entered Proximity Caves 10751 | -6/Proximity Caves | Escorted by Enhanced Grunt 11204 | -6/Proximity Caves | Discovered exit to Factory (range 8) 11223 | -6/Proximity Caves | Entered Factory 11223 | -6/Factory | Accompanied by 1 ally 11223 | -6/Factory | Evolved 2 slots: Propulsion x1, Utility x1 11224 | -6/Factory | Loaded intel: 19 terminal locations 11319 | -6/Factory | Identified exit to Lower Caves 12019 | -6/Factory | Fabricated Armor Integrity Analyzer (x1) 12076 | -6/Factory | Fabricated Hcp. Storage Unit (x1) 12142 | -6/Factory | Fabricated Hcp. Storage Unit (x1) 12210 | -6/Factory | Local fabrication network quarantined 12548 | -6/Factory | Repaired Hrd. Heavy Armor Plating 13145 | -6/Factory | Repaired Imp. Medium Treads? 13235 | -6/Factory | Discovered new exit (range 4) 13673 | -6/Factory | First assault squad dispatched 13816 | -6/Factory | Entered Lower Caves 14304 | -6/Lower Caves | Attacked by a faux Warlord 14563 | -6/Lower Caves | Build established: Scavenger-Tank 14570 | -6/Lower Caves | Discovered new exit (range 13) 14694 | -6/Lower Caves | Entered another Lower Caves area 14995 | -6/Lower Caves | Attracted the attention of an 0b10 checkpoint 15048 | -6/Lower Caves | Build established: Hauler-Tank 15137 | -6/Lower Caves | Discovered new exit (range 10) 15153 | -6/Lower Caves | Entered Zion 15248 | -6/Zion | Learned location of Warlord (-4) 15357 | -6/Zion | System corruption cleaned by Quarantine Array 15402 | -6/Zion | Discovered new exit (range 9) 15630 | -6/Zion | Learned location of 1 exit from Factory 15770 | -6/Zion | Build established: Scavenger-Tank 15832 | -6/Zion | Found Prototype Device 15832 | -6/Zion | Identified Bomb Factory No. 2 15946 | -6/Zion | Learned location of 1 exit from Proximity Caves 16434 | -6/Zion | Gained Derelict followers 16660 | -6/Zion | Entered Proximity Caves 16660 | -5/Proximity Caves | Accompanied by 3 allies 16661 | -5/Proximity Caves | Identified exit to Factory 16892 | -5/Proximity Caves | P-70 Sage assimilated allied E2-BSE(M) 16899 | -5/Proximity Caves | P-70 Sage assimilated allied 9B-P96(l) 16945 | -5/Proximity Caves | Lost 3 parts (1u2w) 16960 | -5/Proximity Caves | Spotted B-75 Beast 16971 | -5/Proximity Caves | Destroyed B-75 Beast 17351 | -5/Proximity Caves | Entered Factory 17351 | -5/Factory | Evolved 2 slots: Power x1, Utility x1 17352 | -5/Factory | Identified exit to Upper Caves 17352 | -5/Factory | Identified exit to Extension 17353 | -5/Factory | Identified exit to Factory 18342 | -5/Factory | Lost 3 parts (1n1u1w) 18782 | -5/Factory | Build established: Scavenger-Mutant 19211 | -5/Factory | Destroyed 7 combat bots 19304 | -5/Factory | Build established: Scavenger-Tank 19304 | -5/Factory | System corruption reached 10% 19340 | -5/Factory | Lost 5 parts (1n3u1w) 19811 | -5/Factory | Entered Extension 19984 | -5/Extension | Incoming investigation squad redirected 20017 | -5/Extension | Rescued a captive Derelict 20157 | -5/Extension | Destroyed 7 combat bots 20283 | -5/Extension | Rescued a captive Derelict 20284 | -5/Extension | Rescued a captive Derelict 21391 | -5/Extension | Build established: Scavenger-Mutant 22268 | -5/Extension | Incoming investigation squad redirected 22274 | -5/Extension | Build established: Scavenger-Tank 22331 | -5/Extension | Spotted B-75 Beast 22366 | -5/Extension | Core integrity fell below 50% 22377 | -5/Extension | Destroyed B-75 Beast 22394 | -5/Extension | Spotted B-75 Beast 22399 | -5/Extension | Lost 3 parts (2n1u) 22403 | -5/Extension | Destroyed B-75 Beast 22533 | -5/Extension | Incoming investigation squad redirected 22639 | -5/Extension | Rescued a captive Derelict 22658 | -5/Extension | Rescued A7 22797 | -5/Extension | Rescued a captive Derelict 22824 | -5/Extension | Rescued a captive Derelict 23234 | -5/Extension | Build established: Scavenger-Mutant 23846 | -5/Extension | Discovered new exit (range 16) 23848 | -5/Extension | Discovered exit to Factory (range 15) 23991 | -5/Extension | Entered Cetus 23991 | -5/Cetus | Accompanied by 14 allies (A7) 23996 | -5/Cetus | Acquired a Cetus Manufacturing Module code from A7 24018 | -5/Cetus | Spotted Cetus Guard 24018 | -5/Cetus | Spotted Cetus Guard 24018 | -5/Cetus | Allies destroyed Cetus Guard 24020 | -5/Cetus | Spotted Cetus Guard 24021 | -5/Cetus | Allies destroyed Cetus Guard 24022 | -5/Cetus | Spotted Cetus Guard 24031 | -5/Cetus | Allies destroyed Cetus Guard 24032 | -5/Cetus | Allies destroyed Cetus Guard 24135 | -5/Cetus | Started Cetus Manufacturing Module 24160 | -5/Cetus | Manufactured an Enhanced Grunt 24185 | -5/Cetus | Manufactured an Enhanced Grunt 24210 | -5/Cetus | Manufactured an Enhanced Grunt 24235 | -5/Cetus | Manufactured an Enhanced Grunt 24260 | -5/Cetus | Manufactured an Enhanced Grunt 24341 | -5/Cetus | Build established: Scavenger-Tank 24366 | -5/Cetus | Discovered new exit (range 16) 24399 | -5/Cetus | Spotted Cetus Guard 24399 | -5/Cetus | Spotted Cetus Guard 24401 | -5/Cetus | Allies destroyed Cetus Guard 24401 | -5/Cetus | Spotted Cetus Guard 24412 | -5/Cetus | Destroyed Cetus Guard 24415 | -5/Cetus | Allies destroyed Cetus Guard 24416 | -5/Cetus | Spotted Cetus Guard 24419 | -5/Cetus | Discovered exit to Factory (range 16) 24424 | -5/Cetus | Allies destroyed Cetus Guard 24428 | -5/Cetus | Met Revision 17 24661 | -5/Cetus | Build established: Scavenger-Mutant 24666 | -5/Cetus | Entered Archives 24666 | -5/Archives | Accompanied by 6 allies (A7) 24753 | -5/Archives | Discovered new exit (range 16) 24772 | -5/Archives | Discovered exit to Factory (range 16) 24844 | -5/Archives | Discovered new exit (range 15) 25070 | -5/Archives | Build established: Scavenger-Tank 26266 | -5/Archives | Entered Hub_04(d) 26266 | -5/Hub_04(d) | Accompanied by 5 allies 26270 | -5/Hub_04(d) | Discovered exit to Factory (range 13) 26534 | -5/Hub_04(d) | Garrison activated, responded to threat 26722 | -5/Hub_04(d) | Garrison activated, responded to threat 26800 | -5/Hub_04(d) | Discovered exit to Factory (range 13) 26866 | -5/Hub_04(d) | First assault squad dispatched 27082 | -5/Hub_04(d) | Network Hub disabled 27106 | -5/Hub_04(d) | Entered Factory 27106 | -4/Factory | Evolved 2 slots: Utility x2 27130 | -4/Factory | Identified exit to Upper Caves 27130 | -4/Factory | Identified exit to Armory 27512 | -4/Factory | Discovered new exit (range 11) 27721 | -4/Factory | Fabricated Nanoactuators (x2) 27773 | -4/Factory | Build established: Scavenger-Mutant 27784 | -4/Factory | Fabricated Hcp. Storage Unit (x1) 27841 | -4/Factory | Fabricated Hcp. Storage Unit (x1) 27902 | -4/Factory | Fabricated Hcp. Storage Unit (x1) 27950 | -4/Factory | Discovered new exit (range 24) 28323 | -4/Factory | Lost 3 parts (1u2w) 28383 | -4/Factory | Local fabrication network quarantined 28606 | -4/Factory | First assault squad dispatched 28635 | -4/Factory | Incoming assault squad redirected 28692 | -4/Factory | Build established: Hauler-Skirmisher 28793 | -4/Factory | Entered Upper Caves 29051 | -4/Upper Caves | Attracted the attention of an 0b10 checkpoint 29477 | -4/Upper Caves | Learned location of Armory (-4) 29486 | -4/Upper Caves | Build established: Scavenger-Tank 29786 | -4/Upper Caves | Build established: Hauler-Gunner 30390 | -4/Upper Caves | Discovered new exit (range 21) 30597 | -4/Upper Caves | Entered another Upper Caves area 30603 | -4/Upper Caves | Build established: Hauler-Skirmisher 30705 | -4/Upper Caves | Attracted the attention of an 0b10 outpost 30737 | -4/Upper Caves | Destroyed 7 combat bots 31114 | -4/Upper Caves | Build established: Scavenger-Tank 32226 | -4/Upper Caves | Spotted B-86 Titan 32280 | -4/Upper Caves | Lost 3 parts (1p2u) 32299 | -4/Upper Caves | Destroyed B-86 Titan 32324 | -4/Upper Caves | Lost 3 parts (1u2w) 32602 | -4/Upper Caves | Build established: Hauler-Gunner 32696 | -4/Upper Caves | Discovered new exit (range 8) 32720 | -4/Upper Caves | Acquired the password to a Derelict Tinkerer's latest research 32736 | -4/Upper Caves | Found Prototype Special Weapon 32876 | -4/Upper Caves | Entered Warlord 33056 | -4/Warlord | Learned Quarantine trap positions 33056 | -4/Warlord | Learned Quarantine stockpile data 33058 | -4/Warlord | Learned 4 Research zone layouts 33060 | -4/Warlord | Learned Research security intel 33060 | -4/Warlord | Learned Factory scanalyzer intel 33517 | -4/Warlord | Met Warlord 33541 | -4/Warlord | Opened Warlord's prototype stash 33542 | -4/Warlord | Warlord's base attacked by MAIN.C 33548 | -4/Warlord | Found Prototype Reactor 33554 | -4/Warlord | Found Exp. Targeting Computer 33565 | -4/Warlord | Found Prototype Hackware 33676 | -4/Warlord | Found Prototype Energy Cannon 33676 | -4/Warlord | Identified Vortex Driver 33679 | -4/Warlord | Found Vortex Driver 33892 | -4/Warlord | Warlord forces counterattacked 34005 | -4/Warlord | Spotted Striker 34078 | -4/Warlord | Spotted Striker 34078 | -4/Warlord | Spotted Striker 34102 | -4/Warlord | Destroyed Striker 34216 | -4/Warlord | Spotted Striker 34270 | -4/Warlord | Found Prototype Ballistic Cannon 34270 | -4/Warlord | Identified Hvy. Autocannon 34306 | -4/Warlord | Spotted Striker 34311 | -4/Warlord | Destroyed Striker 34412 | -4/Warlord | Spotted Striker 34423 | -4/Warlord | Build established: Scavenger-Tank 34459 | -4/Warlord | Spotted Striker 34521 | -4/Warlord | Destroyed Striker 34638 | -4/Warlord | Opened side exit 34671 | -4/Warlord | Spotted Executioner 34673 | -4/Warlord | Core integrity fell below 50% 34673 | -4/Warlord | Spotted Striker 34679 | -4/Warlord | Discovered new exit (range 9) 34694 | -4/Warlord | Entered Proximity Caves 34724 | -3/Proximity Caves | Lost 7 parts (1p2n2u2w) 34826 | -3/Proximity Caves | Build established: Hauler-Mutant 35700 | -3/Proximity Caves | Attracted the attention of an 0b10 checkpoint 35702 | -3/Proximity Caves | Build established: Hauler-Tank 36529 | -3/Proximity Caves | Discovered new exit (range 8) 36549 | -3/Proximity Caves | Entered Research 36549 | -3/Research | Evolved 2 slots: Utility x1, Weapon x1 36550 | -3/Research | Identified exit to Quarantine 36749 | -3/Research | Revision forces began assault on 0b10 36790 | -3/Research | Met up with Revision 17++ 37068 | -3/Research | Found Unknown Launcher 37068 | -3/Research | Identified Gamma Bomb Array 37072 | -3/Research | Found Gamma Bomb Array 37184 | -3/Research | Spotted B-86 Titan 37193 | -3/Research | Destroyed B-86 Titan 37249 | -3/Research | Research terminal network offline 37390 | -3/Research | Spotted Executioner 37404 | -3/Research | Spotted Striker 37412 | -3/Research | Destroyed Striker 37418 | -3/Research | Destroyed Executioner 37448 | -3/Research | Found Prototype Device 37448 | -3/Research | Identified Adv. Kinecellerator 37513 | -3/Research | Found Unknown Device 37513 | -3/Research | Identified Quantum Capacitor 37791 | -3/Research | Build established: Hauler-Mutant 37981 | -3/Research | Entered Quarantine 37982 | -3/Quarantine | Loaded intel: 13 trap records 38073 | -3/Quarantine | Repaired Hrd. Heavy Armor Plating? 38431 | -3/Quarantine | Destroyed 10 combat bots 38479 | -3/Quarantine | Identified Ghost Barrier 38602 | -3/Quarantine | Found Alien Artifact 38700 | -3/Quarantine | Found Alien Artifact 38700 | -3/Quarantine | Identified Phase Armor 38801 | -3/Quarantine | Found Alien Artifact 38801 | -3/Quarantine | Identified Stasis Generator 38866 | -3/Quarantine | Found Alien Impact Weapon 38940 | -3/Quarantine | Identified exit to Research 38953 | -3/Quarantine | Identified Core Reset Matrix 39059 | -3/Quarantine | Cryocooling Duct disabled 39074 | -3/Quarantine | Ambient heat levels rising (+20) 39074 | -3/Quarantine | Non-combat units ordered to evacuate 39282 | -3/Quarantine | Found Prototype Processor 39282 | -3/Quarantine | Identified Exp. Melee Analysis Suite 39368 | -3/Quarantine | Found Alien Artifact 39368 | -3/Quarantine | Identified Terrabomb 39368 | -3/Quarantine | Used Terrabomb 39574 | -3/Quarantine | Repaired Com. HERF Cannon 39832 | -3/Quarantine | Found Alien Artifact 39832 | -3/Quarantine | Identified Matter Drive 39926 | -3/Quarantine | Entered Research 39926 | -2/Research | Warlord forces began assault on 0b10 39926 | -2/Research | Evolved 2 slots: Utility x2 40036 | -2/Research | Research machine network offline 40231 | -2/Research | Spotted Striker 40236 | -2/Research | Destroyed Striker 40238 | -2/Research | Spotted Executioner 40244 | -2/Research | Destroyed Executioner 40268 | -2/Research | Destroyed 8 combat bots 40394 | -2/Research | Found Quantum Capacitor 40406 | -2/Research | Borebot progress halted 40442 | -2/Research | Discovered new exit (range 8) 40462 | -2/Research | Identified exit to Testing 40893 | -2/Research | Borebot progress halted 40978 | -2/Research | Spotted Striker 40983 | -2/Research | Met up with Warlord 40984 | -2/Research | Warlord invited to help at Command 41032 | -2/Research | Spotted Striker 41033 | -2/Research | Spotted Striker 41040 | -2/Research | Destroyed Striker 41043 | -2/Research | Destroyed Striker 41186 | -2/Research | Entered Testing 41188 | -2/Testing | Spotted PH-EDL8CPE9RG 41218 | -2/Testing | Found Exp. Targeting Computer 41226 | -2/Testing | Found Prototype Device 41226 | -2/Testing | Identified Exp. Weapon Cycler 41307 | -2/Testing | Found Prototype Device 41307 | -2/Testing | Identified AEGIS Remote Shield 41501 | -2/Testing | Fabricated Enh. Nova Cannon? 41546 | -2/Testing | Garrison activated, responded to threat 41559 | -2/Testing | Fabricated Hcp. Storage Unit (x1) 41644 | -2/Testing | Fabricated Lrn. Sensor Array (x1) 41837 | -2/Testing | Discovered new exit (range 14) 41889 | -2/Testing | Identified exit to Access 42153 | -2/Testing | Found Prototype Ballistic Gun 42153 | -2/Testing | Identified Hyp. Multirail 42512 | -2/Testing | Found Prototype Energy Cannon 42512 | -2/Testing | Identified Hpw. Disruptor Cannon 42616 | -2/Testing | Spotted Striker 42622 | -2/Testing | Spotted Striker 42640 | -2/Testing | Destroyed Striker 42659 | -2/Testing | Destroyed Striker 42855 | -2/Testing | Found Prototype Energy Cannon 42855 | -2/Testing | Identified Disintegrator 43002 | -2/Testing | Identified Core Stripper 43009 | -2/Testing | Spotted Fortress 43031 | -2/Testing | Destroyed Fortress 43041 | -2/Testing | Found Prototype Device 43041 | -2/Testing | Identified Exp. Force Field 43046 | -2/Testing | Found Prototype Device 43046 | -2/Testing | Identified Thermal Barrier 43053 | -2/Testing | Found Prototype Device 43053 | -2/Testing | Identified EM Dispersion Field 43065 | -2/Testing | Found Prototype Reactor 43065 | -2/Testing | Identified Vortex Chain Reactor (x2) 43077 | -2/Testing | Found Prototype Protection 43078 | -2/Testing | Identified Centrium Heavy Armor Plating 43223 | -2/Testing | Discovered new exit (range 6) 43230 | -2/Testing | Identified exit to Section 7 43273 | -2/Testing | Entered Section 7 43388 | -2/Section 7 | Spotted S7 Guard 43399 | -2/Section 7 | Destroyed S7 Guard 43410 | -2/Section 7 | Found Prototype Protection 43410 | -2/Section 7 | Identified Hvy. Regenerative Plating 43426 | -2/Section 7 | Found Alien Artifact 43426 | -2/Section 7 | Identified Integrated Heat Negator 43426 | -2/Section 7 | Installed Integrated Heat Negator, increased core heat dissipation (+40) 43698 | -2/Section 7 | Found Alien Artifact 43698 | -2/Section 7 | Identified Integrated Dissipator 43698 | -2/Section 7 | Installed Integrated Dissipator, increased core heat dissipation (+20) 44138 | -2/Section 7 | Found Integrated Dissipator 44138 | -2/Section 7 | Installed Integrated Dissipator, increased core heat dissipation (+20) 44847 | -2/Section 7 | Entered Access 44847 | -1/Access | Evolved 2 slots: Power x1, Utility x1 45237 | -1/Access | Incoming investigation squad redirected 46034 | -1/Access | Discovered new exit (range 8) 46046 | -1/Access | Identified exit to Command 46047 | -1/Access | Entered Command 46218 | -1/Command | Spotted M Guard 46218 | -1/Command | Spotted M Guard 46219 | -1/Command | Spotted Combat Programmer 46219 | -1/Command | Spotted Combat Programmer 46229 | -1/Command | Destroyed M Guard 46241 | -1/Command | Destroyed M Guard 46248 | -1/Command | Destroyed Combat Programmer 46259 | -1/Command | Destroyed Combat Programmer 46259 | -1/Command | All MAIN.C guards destroyed 46284 | -1/Command | Found Prototype Reactor 46284 | -1/Command | Identified Zero-point Reactor 46288 | -1/Command | Found Zero-point Reactor 46292 | -1/Command | Found AEGIS Remote Shield 46297 | -1/Command | Found Hvy. Regenerative Plating 46315 | -1/Command | Found Zero-point Reactor 46328 | -1/Command | Found Hvy. Regenerative Plating 46419 | -1/Command | Met MAIN.C 46429 | -1/Command | 0b10 Conduit disabled 46443 | -1/Command | Destroyed MAIN.C Shell 46444 | -1/Command | Surrendered to MAIN.C 46444 | -1/Command | Loaded intel: 57 machine locations 46444 | -1/Command | Loaded intel: 118 trap records 46444 | -1/Command | Identified exit to Surface 46444 | -1/Command | Discovered exit to Surface (range 102) 46444 | -1/Command | Discovered exit to Surface (range 39) 46576 | -1/Command | Found Vortex Chain Reactor 46597 | -1/Command | Build established: Generator-Mutant 46674 | -1/Command | MAIN.C activated Command garrisons 46713 | -1/Command | Unknown forces attacked Command 46713 | -1/Command | Spotted EQ-003 46713 | -1/Command | Spotted EQ-000 46713 | -1/Command | Spotted EQ-005 46713 | -1/Command | Spotted EQ-001 46713 | -1/Command | Spotted EQ-004 46713 | -1/Command | Spotted EQ-006 46713 | -1/Command | Spotted EQ-002 46811 | -1/Command | Spotted EQ-020 46811 | -1/Command | Spotted EQ-018 46811 | -1/Command | Spotted EQ-019 46833 | -1/Command | Found Prototype Processor 46833 | -1/Command | Identified Exp. Core Analyzer 46887 | -1/Command | Spotted EQ-027 46892 | -1/Command | Spotted EQ-015 46914 | -1/Command | Destroyed EQ-015 46918 | -1/Command | Destroyed EQ-027 46928 | -1/Command | Spotted EQ-038 46930 | -1/Command | Spotted EQ-056 46934 | -1/Command | Spotted EQ-044 46934 | -1/Command | Spotted EQ-040 46984 | -1/Command | Spotted EQ-010 46988 | -1/Command | Spotted EQ-059 47040 | -1/Command | Spotted EQ-082 47040 | -1/Command | Spotted EQ-060 47043 | -1/Command | Destroyed EQ-082 47079 | -1/Command | Spotted EQ-073 47095 | -1/Command | Spotted EQ-071 47095 | -1/Command | Spotted EQ-079 47103 | -1/Command | Spotted EQ-083 47120 | -1/Command | System corruption reached 10% 47129 | -1/Command | Spotted EQ-062 47136 | -1/Command | Spotted EQ-095 47136 | -1/Command | Spotted EQ-092 47138 | -1/Command | Spotted EQ-101 47143 | -1/Command | Spotted EQ-097 47145 | -1/Command | Spotted EQ-084 47179 | -1/Command | Destroyed EQ-095 47182 | -1/Command | Destroyed EQ-092 47194 | -1/Command | Spotted EQ-093 47200 | -1/Command | Spotted EQ-107 47204 | -1/Command | Spotted EQ-105 47210 | -1/Command | Destroyed EQ-084 47211 | -1/Command | Spotted EQ-104 47239 | -1/Command | Lost 7 parts (1p1u5w) 47250 | -1/Command | Destroyed EQ-105 47256 | -1/Command | Spotted EQ-110 47262 | -1/Command | Spotted EQ-126 47266 | -1/Command | Destroyed EQ-104 47269 | -1/Command | Spotted EQ-115 47269 | -1/Command | Spotted EQ-072 47273 | -1/Command | Spotted EQ-111 47275 | -1/Command | Spotted EQ-123 47282 | -1/Command | Destroyed EQ-110 47286 | -1/Command | Spotted EQ-137 47295 | -1/Command | Spotted EQ-135 47304 | -1/Command | Destroyed EQ-111 47306 | -1/Command | System corruption reached 30% 47308 | -1/Command | Spotted EQ-112 47309 | -1/Command | Spotted EQ-090 47319 | -1/Command | Core integrity fell below 50% 47319 | -1/Command | Spotted EQ-125 47320 | -1/Command | Released all parts (11) 47325 | -1/Command | Core integrity fell below 20% 47338 | *** | Escaped! Last Messages --------------- 47317_ The unstable cave ceiling collapses. 47317_ Penetrated by Slug. 47318_ Slug penetrates Reinforced Barrier. 47319_ The unstable cave ceiling collapses. 47319_ Quantum Capacitor destroyed. 47320_ Released Hcp. Storage Unit. 47320_ Released Plasma Lance. 47320_ Released Hcp. Storage Unit. 47320_ Released Adv. Armor Integrity Analyzer. 47320_ Released Biometal Heavy Treads. 47320_ Released AEGIS Remote Shield. 47320_ Released Exp. Optical Array. 47320_ Released Adv. Energy Well. 47320_ Penetrated by Slug. 47322_ The unstable cave ceiling collapses. 47323_ Penetrated by Slug. 47323_ Knocked back. 47327_ Acquired 80 matter. 47329_ Acquired 14 matter. [A new version of Cogmind is available, see F1 News page.] Map ----- +----------------------------------------------------+ | ??????# """T""" #??# #????????????? | | ??????# """ """ #### #????????????? | | ??????# + + #????????????? | | ??????# #### #????????????? | | ??????# #??# || #????????????? | | ??????# #??# #????????????? | | ??????# #??# #????????????? | | ??????#########+############ #????????????? | | ????????????# ######+####????????????? | | ????????????# ^ ####???????????? | | ????????????#^ """#???????????? | | ????????????# ^^ """#???????????? | | #####???????# R"#???????????? | | #???????# """#???????????? | | ######### "" #???????????? | | * !== ####???????????? | | [%*!%!* #??????????????? | | #####+############# =!!!== ###########????? | | # #??# !%[| % #????? | | +#### #??# != T#????? | | ## #??# ######*!####### ##????? | | ## #??# #????#=!#??#### ##????? | | ## #??# #????#=%#??# ]] =#????? | | ## #??# ###??#%!#??#][] ] =#????? | | #######+#########??# #??#*!#??#!!!**==#????? | | # #?????????# @ #??" #??#!!!* = #????? | | # #?????????# #??#!*#??#########????? | | #### "" #?????????######??# *#???????????????? | | # """ #?????????????????#! #???????????????? | | + "R #???????########### #???????????????? | | # """ #???????# # #???????????????? | | # """ #???????# # #????############ | | # #???????#! " #????#??????????? | | # #??????## # #????#?########## | | ##########???#?##""####+####% #????#?#""""""" | | #????????????# # #?# ##????#?#"" | | #???????????# " ! #?# #?????#?#""""" | | #############""# ### ##????#?#"""" """" | | ^ [= " ##"*"##???#?#" " " | | + " !=# #####?#"" """"" | | ^ #### # " "! ##?#"" """" | | #??# " "% ! #?#*"%%%= | | ###### ^ #??# # "!![!=[! ##?#=!= | | """""# ^ ####+#### #==!!!] #?#] / | | """# ^ # # ##]!!!!!= #?# | | """# # ] ! ==!/!! #?# % | | """# ^ % !%! =![!]! #?# ! | | """""# # ! %=![ ! = # #?# = [%= | | ###### = ##* #=##!!!* ##### ] [ =% | | = !]!=%%%%!**%! %!!%[=% % | +----------------------------------------------------+ Best States ------------- Heat Dissipation 170 Coolant Potential 120 Energy Generation 89 Energy Capacity 1840 Matter Stores 300 Matter Capacity 300 Sight Range 23 Robot Scan Range 20 Terrain Scan Range 24 Terrain Scan Density 210 Jamming Range 16 Armor Coverage 2400 Resistance: TH 15 Resistance: EX 50 Resistance: EM 75 Core Shielding 40 Weapon Shielding 90 Weapon Cycling 20 Melee Speed Boost 30 Evasion (%) 50 Targeting Accuracy 12 Melee Accuracy 5 Target Analysis 6 Core Analysis 15 Armor Integrity Analysis 66 Recoil Reduction 4 Energy Filtering 30 Particle Charging 30 Kinecelleration 50 Salvage Targeting 4 Offensive Hacking 14 Defensive Hacking 20 Item Schematics ----------------- Hcp. Storage Unit | -10/Materials | Hacked Armor Integrity Analyzer | -8/Materials | Hacked Combat Drone Bay | -7/Data Miner | Free Lgt. Regenerative Plating | -7/Data Miner | Free Exp. Terrain Scan Processor | -7/Data Miner | Free Exp. Targeting Computer | -7/Data Miner | Free Tactical Coordination Suite | -7/Data Miner | Free Exp. ECM Suite | -7/Data Miner | Free Cloaking Device | -7/Data Miner | Free Mni. Smartbomb Launcher | -7/Data Miner | Free Quantum Capacitor | -3/Quarantine | Scanalyzed Lrn. Sensor Array | -2/Testing | Hacked Robot Schematics ------------------ S-27 Virus | -7/Data Miner | Free G-50 Soldier | -7/Data Miner | Free X-72 Disruptor | -7/Data Miner | Free H-66 Slayer | -7/Data Miner | Free I-36 Angel | -7/Data Miner | Free I-47 Archangel | -7/Data Miner | Free Fabricated ------------ Armor Integrity Analyzer | x1 | -6/Factory Hcp. Storage Unit | x1 | -6/Factory Hcp. Storage Unit | x1 | -6/Factory Nanoactuators | x2 | -4/Factory | Preloaded Hcp. Storage Unit | x1 | -4/Factory Hcp. Storage Unit | x1 | -4/Factory Hcp. Storage Unit | x1 | -4/Factory Enh. Nova Cannon | x1 | -2/Testing | Preloaded Hcp. Storage Unit | x1 | -2/Testing Lrn. Sensor Array | x1 | -2/Testing Alien Tech Used ----------------- Phase Armor Stasis Generator Terrabomb Matter Drive Core Stripper Integrated Heat Negator Integrated Dissipator Achievements -------------- None Challenges ------------ None Game ------ Seed HeartDynamicAxe Manual? 0 Play Time 06:51:01 Cumulative 210.8 hours Start 2021.06.22 @ 23:54:23 End 2021.07.03 @ 20:12:31 Sessions 63 Manual Loads 0 Difficulty Rogue Special Mode None Game No. 46 Rogue 45 Adventurer 0 Explorer 1 Win Type 0 Total 13 Types 4/2/1/1/0/0/4/1/0 Lore% 69 Gallery% 80 Achievement% 66 Wizard Run 0 Options --------- ASCII 0 Keyboard 0 Movement Mouse Keybinds 0 Fullscreen 1 Font 18/Terminus Map View 76x50 Tactical HUD 1 Map Filters NONE Filters NONE Steam 0 RUN: c219fb09-2fe8-48dc-9609-fa686c93ffee